Cogmind - Beta 13 X1 @@@ ROGUE MODE // 2023.07.04 @ 15:41:27 Player: cptwinky Result: Destroyed by G-73 Enforcer with Phase Gun Performance ------------- Evolutions (9) 4500 Regions Visited (35) 7000 Robots Destroyed (628) 3140 Value Destroyed (30417) 30417 Prototype IDs (100) 2000 Alien Tech Used (2) 400 Bonus (22221) 22221 TOTAL SCORE: 69678 Bonus ------- Triggered High Security 500 High Alert Combat Kills 12250 Follower Combat Kills 2071 Aligned with FarCom 300 Met Data Miner 300 Met Imprinter 300 Met Zhirov 300 Met Warlord at Base 500 MAIN.C Attacked Warlord 500 Warlord Defense Kills 2880 Met Warlord at Research 2000 Scanned by Researcher 500 Met Warlord at Command 2000 Friendly Fire -2180 Cogmind --------- Core Integrity 0/1600 Matter 300/300 Energy 100/100 System Corruption 23% Temperature Cool (0) Movement Core (50) Location -1/Command Parts ------- > --- POWER (3) -------- (None) > --- PROPULSION (6) --- (None) > --- UTILITY (13) ----- (None) > --- WEAPON (3) ------- (None) > --- INVENTORY (5) ---- Advanced Thermal Shield Advanced Force Field Peak State ------------ > --- POWER ------------ Quantum Reactor Light Quantum Reactor Reinforced Quantum Reactor > --- PROPULSION ------- Improved Heavy Siege Treads Experimental Biometal Heavy Treads High-density Centrium Heavy Treads > --- UTILITY ---------- Advanced Power Amplifier Advanced Cooling System Advanced Cooling System High-capacity Storage Unit Advanced Targeting Computer Improved Armor Integrity Analyzer Femtoactuators Advanced Phase Shifter Hardened Medium Armor Plating Advanced Focal Shield Advanced Force Field Hacking Suite Drone Bay > --- WEAPON ----------- Enhanced Nova Cannon Graviton Cannon Graviton Cannon > --- INVENTORY -------- Reinforced Quantum Reactor Armored Heavy Treads Biometal Heavy Treads Compact Battery Matter Compressor Experimental Matter Compressor Advanced Thermal Shield Advanced Force Field Improved System Restoration Module Long-range Tractor Beam Enhanced Nova Cannon Multirail Graviton Cannon Graviton Cannon Graviton Cannon Graviton Cannon Fusion Bomb Launcher CR-A16's Behemoth Slayer [Rating: 203] Favorites ----------- Power Heavy Ion Engine Engine Heavy Ion Engine Power Core Enhanced Nuclear Core Reactor Reinforced Quantum Reactor Propulsion Armored Treads Treads Armored Treads Leg Flexi-carbon Leg Wheel Armored Huge Wheel Hover Unit Cooled Antigrav System Flight Unit Impulse Thruster Array Utility High-capacity Storage Unit Device Advanced Cooling System Storage High-capacity Storage Unit Processor Advanced Targeting Computer Hackware Hacking Suite Protection Improved Powered Armor Weapon Assault Cannon Energy Gun Gatling Laser Energy Cannon Enhanced Nova Cannon Ballistic Gun Autogun Ballistic Cannon Assault Cannon Launcher Tesla Bomb Launcher Special Weapon Mining Laser Impact Weapon Great Maul Slashing Weapon Makeshift Sword Piercing Weapon CR-A16's Behemoth Slayer Special Melee Weapon Improved Datajack Build | -11 -10 -10 -10 -9 -9 -9 -8 -8 -8 -7 -7 -7 -7 -6 -6 -6 -6 -6 -6 -6 -5 -5 -5 -5 -5 -4 -4 -4 -4 -4 -3 -3 -2 -1 -1 ------- Run | Jun Mat Min Sub Mat Min Exi Min Mat Sto Fac Low Low Dat Pro Fac Was Fac Low Low Zio Pro Fac Upp Upp Zhi Pro Fac Upp Upp War Pro Res Res Acc Com Slots Evolved 18 | . . . . 2 . . . 2 . 2 . . . . 2 . . . . . . 2 . . . . 2 . . . . 2 2 2 . Power 2 | . . . . . . . . . . . . . . . 1 . . . . . . . . . . . . . . . . 1 . . . Propulsion 4 | . . . . 1 . . . . . 1 . . . . . . . . . . . 1 . . . . . . . . . 1 . . . Utility 11 | . . . . 1 . . . 2 . 1 . . . . 1 . . . . . . . . . . . 2 . . . . . 2 2 . Weapon 1 | . . . . . . . . . . . . . . . . . . . . . . 1 . . . . . . . . . . . . . Parts Attached 680 | 3 13 2 47 39 15 5 5 8 20 19 9 18 2 22 5 9 65 8 10 7 14 26 4 4 7 15 47 16 3 15 4 48 41 51 54 Power 38 | . . . 3 1 1 . . . . 1 . . . 1 1 1 4 1 1 . . 1 1 . . . 3 . 1 . . 5 5 3 4 Engine 12 | . . . 2 1 1 . . . . . . . . 1 1 . 4 . 1 . . . . . . . . . . . . . 1 . . Core 11 | . . . 1 . . . . . . 1 . . . . . . . 1 . . . 1 1 . . . 2 . 1 . . 2 1 . . Reactor 15 | . . . . . . . . . . . . . . . . 1 . . . . . . . . . . 1 . . . . 3 3 3 4 Propulsion 85 | 2 2 . 4 14 4 . . . 4 2 . 2 . 1 . 1 6 2 3 . 1 3 . . 2 3 4 . 1 5 . 6 6 4 3 Treads 51 | 2 2 . . 13 4 . . . 4 1 . 2 . . . 1 2 . 1 . . . . . 1 1 4 . 1 2 . 3 1 4 2 Leg 8 | . . . . . . . . . . . . . . . . . 1 2 2 . 1 1 . . . . . . . 1 . . . . . Wheel 22 | . . . 4 1 . . . . . 1 . . . 1 . . 3 . . . . 2 . . . 2 . . . . . 3 5 . . Hover 1 | . . . . . . . . . . . . . . . . . . . . . . . . . . . . . . 1 . . . . . Flight 3 | . . . . . . . . . . . . . . . . . . . . . . . . . 1 . . . . 1 . . . . 1 Utility 315 | . 5 . 7 10 2 3 2 6 7 12 9 11 . 13 4 3 31 5 . 4 4 19 1 2 3 8 25 9 1 7 2 25 23 28 24 Device 203 | . 2 . 2 2 1 1 . 4 3 11 8 7 . 8 3 2 14 2 . 2 2 12 1 2 2 8 15 6 1 4 2 21 14 22 19 Storage 12 | . 1 . 1 . . 1 . . 1 . . . . . . . 2 . . . . . . . . . . . . 1 . 2 2 1 . Processor 16 | . . . 1 1 . . 1 . . . . . . . 1 . 1 1 . . 1 2 . . . . 1 1 . . . . 4 1 . Hackware 10 | . . . . 1 . . . . 1 . . . . . . . 1 . . . . 2 . . . . 1 . . . . . 1 . 3 Protection 74 | . 2 . 3 6 1 1 1 2 2 1 1 4 . 5 . 1 13 2 . 2 1 3 . . 1 . 8 2 . 2 . 2 2 4 2 Artifact . | . . . . . . . . . . . . . . . . . . . . . . . . . . . . . . . . . . . . Weapon 242 | 1 6 2 33 14 8 2 3 2 9 4 . 5 2 7 . 4 24 . 6 3 9 3 2 2 2 4 15 7 . 3 2 12 7 16 23 Energy Gun 7 | . 2 . . . . . . . . . . . . . . . 3 . 1 . . . . . . . . . . . . . 1 . . Energy Cannon 37 | . . . 1 . . . . . 2 . . . . . . . 9 . . . 1 . . 1 . 2 5 3 . . 2 3 1 5 2 Ballistic Gun 54 | 1 4 1 19 8 . . . . 1 . . . . . . . 1 . 3 3 3 2 2 1 1 2 1 . . . . . . 1 . Ballistic Cannon 56 | . . . . 2 4 . 2 1 5 2 . 2 . 4 . . 2 . . . . . . . . . 5 1 . . . 5 5 4 12 Launcher 42 | . . 1 . 4 2 1 1 1 . 1 . 2 1 2 . 2 4 . . . . . . . . . 2 1 . 2 . 2 . 5 8 Special Weapon 13 | . . . 13 . . . . . . . . . . . . . . . . . . . . . . . . . . . . . . . . Impact Weapon 12 | . . . . . . . . . . 1 . 1 . 1 . 1 5 . 1 . 1 . . . . . . 1 . . . . . . . Slashing Weapon 1 | . . . . . 1 . . . . . . . . . . . . . . . . . . . . . . . . . . . . . . Piercing Weapon 10 | . . . . . . . . . . . . . . . . . . . . . 2 . . . 1 . 2 1 . . . 2 . 1 1 Special Melee Weapon 10 | . . . . . 1 1 . . 1 . . . 1 . . 1 . . 1 . 2 1 . . . . . . . 1 . . . . . Unidentified Prototypes 34 | . . . . 2 . . . . 3 1 . 1 . 1 . . 3 1 . 1 . . . . 3 . 1 . . 6 . 2 5 4 . Corrupted Parts 1 | . . . . . . . . . . . . . . . . . . . . . . . . . . . . . . . . . 1 . . System Corruption 1 | . . . . . . . . . . . . . . . . . . . . . . . . . . . . . . . . . 1 . . Parts Lost 80 | . . . 3 3 . . . . 1 . . 1 . . . 6 7 3 1 . 1 . . . . . 7 1 . . . 24 . 1 21 Power 10 | . . . 1 . . . . . . . . . . . . 1 1 . 1 . 1 . . . . . 1 . . . . 4 . . . Propulsion 16 | . . . 1 2 . . . . . . . . . . . 1 2 1 . . . . . . . . . . . . . 4 . . 5 Utility 39 | . . . 1 1 . . . . 1 . . 1 . . . 3 3 2 . . . . . . . . 4 1 . . . 10 . 1 11 Weapon 15 | . . . . . . . . . . . . . . . . 1 1 . . . . . . . . . 2 . . . . 6 . . 5 Highest Loss Streak 19 | . . . 2 2 . . . . 1 . . 1 . . . 6 3 2 1 . 1 . . . . . 2 1 . . . 19 . 1 13 To Critical Strikes 1 | . . . . . . . . . . . . . . . . . . . . . . . . . . . . . . . . . . . 1 Average Slot Usage (%) 89 | . 96 100 86 97 92 88 93 94 92 94 92 89 100 94 89 78 85 96 86 86 86 91 88 88 85 88 85 83 89 88 89 71 83 87 76 Engine 5 | . 14 14 10 11 11 11 11 9 9 . . . . 3 9 6 10 11 6 6 6 5 5 5 5 5 . . . . . . 1 . . Core 3 | . . . 3 . . . . . . 6 7 7 7 3 . . . . 6 6 5 4 5 5 5 5 6 5 5 10 10 7 3 . . Reactor 1 | . . . . . . . . . . . . . . . . . . . . . . . . . . . 3 5 4 . . 3 5 11 11 Treads 18 | . 27 28 21 31 33 33 33 27 27 21 15 25 30 28 13 11 9 . 4 6 6 5 5 5 5 3 7 15 15 14 15 12 4 9 11 Leg 1 | . . . . . . . . . . . . . . . . . . 12 12 20 20 16 . . . . . . . . . . . . . Wheel 3 | . . . 6 1 . . . . . 4 7 1 . . 6 6 7 13 8 . . 2 11 11 11 12 7 . . . . . 16 5 . Device 12 | . 6 . 2 1 10 2 . 13 2 14 16 18 15 18 17 19 17 17 13 13 11 5 10 13 14 17 15 20 21 20 20 19 21 27 17 Storage 6 | . 14 14 2 11 11 11 11 9 9 7 7 7 7 7 6 4 4 6 6 6 6 5 5 5 5 5 5 5 5 5 5 3 3 4 3 Processor 3 | . . . . . . . 5 9 9 7 3 . . . 1 6 . 3 6 6 7 13 11 11 11 11 10 5 5 5 5 3 7 7 4 Hackware 3 | . . . . 7 . . . . 8 7 7 7 7 7 6 6 8 4 . . . . . . . . . . . . . . 3 4 9 Protection 8 | . 4 14 10 10 4 8 11 9 8 7 9 3 15 6 13 4 10 10 6 6 7 10 11 8 5 5 10 10 15 15 15 7 2 6 6 Energy Cannon 2 | . . . . . . . . . . . . . . . . . 2 . . . . . . . . . 7 14 15 11 14 3 3 4 7 Ballistic Gun 6 | . 19 27 25 19 . . . . . . . . . . . . 2 . 7 12 12 15 17 16 16 16 4 . . . . . . . . Ballistic Cannon 6 | . . . . 2 21 11 21 17 17 14 15 10 7 13 13 1 2 . . . . . . . . . 2 . . . . 4 6 7 3 Naked Turns 50 | . . . . . . . . . . . . . . . . . . . . . . . . . . . . . . . . . . . 50 Heaviest Build 247 | 12 32 32 38 50 56 72 76 79 113 116 119 119 119 135 150 149 103 91 83 83 95 104 100 100 96 97 145 147 147 145 146 163 165 219 247 Greatest Support 250 | 40 40 40 40 63 60 60 60 60 62 82 28 80 80 80 28 28 36 20 51 51 51 67 56 56 56 72 180 180 180 162 162 195 84 250 235 Greatest Overweight (x) 8 | . . . 3 4 . 1 1 1 1 4 4 4 1 4 5 5 8 4 4 1 1 3 1 1 1 1 3 . . . . 2 2 2 1 Average Overweight (x) 1 | . . . . . . . 1 1 1 2 3 1 1 1 4 2 2 3 3 1 1 1 1 1 1 1 . . . . . . . . . Largest Inventory Capacity 25 | 8 15 15 15 15 15 20 20 20 25 25 25 25 25 25 25 25 20 20 20 20 20 20 20 20 20 20 20 20 20 20 20 20 20 20 20 Average Capacity 18 | 8 11 15 6 15 15 19 20 20 24 25 25 25 25 25 25 20 15 20 20 20 20 20 20 20 20 20 20 20 20 20 20 18 14 20 19 Most Carried 25 | 6 12 13 15 15 15 20 20 20 25 25 25 25 25 25 25 25 20 20 20 20 20 20 20 20 20 20 20 20 20 20 20 20 20 20 20 Average Carried 18 | 6 7 12 6 14 14 16 19 19 23 24 24 24 25 24 24 20 14 19 19 19 19 19 19 19 19 19 19 19 20 19 19 16 12 19 18 Final Capacity 25 | 8 15 15 15 15 15 20 20 20 25 25 25 25 25 25 25 5 20 20 20 20 20 20 20 20 20 20 20 20 20 20 20 5 20 20 5 Final Carried 25 | 6 12 13 15 15 15 20 20 20 25 25 25 25 25 25 25 5 20 19 20 20 20 17 20 20 20 20 20 20 20 20 20 5 20 20 2 Class Distribution -------------------- 39% | Mutant 14% | Scavenger-Mutant 7% | Derelict-Mutant 6% | Scavenger-Tank 5% | Trapper-Tank 5% | Scavenger-Skirmisher 4% | Commander-Mutant 4% | Subdweller-Mutant 3% | Trapper-Mutant Dominant Class ---------------- Mutant | -10/Materials Mutant | -10/Mines Mutant | -10/Subcaves Scavenger-Mutant | -9/Materials Mutant | -9/Mines Mutant | -9/Exiles Mutant | -8/Mines Derelict-Mutant | -8/Materials Commander-Mutant | -8/Storage Mutant | -7/Factory Mutant | -7/Lower Caves Mutant | -7/Lower Caves Mutant | -7/Data Miner Mutant | -6/Proximity Caves Mutant | -6/Factory Mutant | -6/Waste Scavenger-Mutant | -6/Factory Scavenger-Mutant | -6/Lower Caves Scavenger-Skirmisher | -6/Lower Caves Derelict-Mutant | -6/Zion Scavenger-Skirmisher | -5/Proximity Caves Scavenger-Gunner | -5/Factory Gunner | -5/Upper Caves Derelict-Gunner | -5/Upper Caves Derelict-Gunner | -5/Zhirov Trapper-Gunner | -4/Proximity Caves Trapper-Gunner | -4/Factory Trapper-Tank | -4/Upper Caves Trapper-Tank | -4/Upper Caves Trapper-Mutant | -4/Warlord Scavenger-Tank | -3/Proximity Caves Scavenger-Tank | -3/Research Scavenger-Tank | -2/Research Scavenger-Mutant | -1/Access Scavenger-Mutant | -1/Command Resources | -11 -10 -10 -10 -9 -9 -9 -8 -8 -8 -7 -7 -7 -7 -6 -6 -6 -6 -6 -6 -6 -5 -5 -5 -5 -5 -4 -4 -4 -4 -4 -3 -3 -2 -1 -1 ----------- Run | Jun Mat Min Sub Mat Min Exi Min Mat Sto Fac Low Low Dat Pro Fac Was Fac Low Low Zio Pro Fac Upp Upp Zhi Pro Fac Upp Upp War Pro Res Res Acc Com Matter Collected 23386 | 222 433 161 989 1432 2088 200 395 284 695 283 992 1199 . 1134 . . 2600 150 199 81 159 448 279 150 70 370 951 189 46 802 50 2315 587 1390 2043 Remotely 2510 | . . . . . . . . . . . . . . . . . . . . . . . . . . . . . . . . 1113 . 336 1061 Salvage Created 33922 | . 523 249 589 1760 202 . 167 424 714 304 706 427 . 720 . . 3295 210 202 . 131 623 358 186 323 619 1978 845 144 1703 . 2742 314 2489 10975 Parts 1512 | . 34 23 44 118 17 . 14 21 52 18 17 14 . 19 . . 99 2 7 . 9 35 8 13 3 23 80 30 5 46 . 173 12 95 481 Haulers Intercepted 24 | . 1 . . 6 . . . 2 6 . . . . 1 . . 3 . . . . . . . . . . . . . . 1 2 2 . Recyclers Shooed 18 | . 1 2 . 1 . . 1 . . . . . . . . . 2 . . . . . . . . . 2 . . . . 3 . . 6 Parts Field Recycled . | . . . . . . . . . . . . . . . . . . . . . . . . . . . . . . . . . . . . Retrieved Matter . | . . . . . . . . . . . . . . . . . . . . . . . . . . . . . . . . . . . . Parts Self-Destructed 189 | . . . 19 . . . . . . . 18 14 . 13 . . . 20 10 5 17 . 12 13 1 18 . 23 6 . . . . . . Prevented 15 | . . . . . . . . . . . . . . 4 . . . . . . . . . . . 4 . 4 1 . 2 . . . . Kills | -11 -10 -10 -10 -9 -9 -9 -8 -8 -8 -7 -7 -7 -7 -6 -6 -6 -6 -6 -6 -6 -5 -5 -5 -5 -5 -4 -4 -4 -4 -4 -3 -3 -2 -1 -1 ------- Run | Jun Mat Min Sub Mat Min Exi Min Mat Sto Fac Low Low Dat Pro Fac Was Fac Low Low Zio Pro Fac Upp Upp Zhi Pro Fac Upp Upp War Pro Res Res Acc Com Combat Hostiles Destroyed 550 | . 14 4 16 34 9 . 6 8 15 6 18 9 . 13 . . 41 6 3 . 2 9 4 5 . 7 30 18 3 20 . 42 2 37 169 Melee 1 | . . . . . . . . . . . . . . . . . 1 . . . . . . . . . . . . . . . . . . Guns 106 | . 14 2 16 23 . . . . . . . . . . . . 9 4 3 . 1 9 4 5 . 5 11 . . . . . . . . Cannons 195 | . . . . . 5 . 3 7 15 4 18 7 . 7 . . 13 . . . . . . . . 1 11 11 3 1 . 31 2 24 32 AOE 184 | . . 2 . 11 4 . 3 1 . 2 . 2 . 5 . . 10 . . . . . . . . . 3 5 . 9 . 5 . 12 110 Classes Destroyed 30 | . 4 3 2 4 1 . 1 . 1 1 . 3 . 1 . . 2 1 . . . . . . . . . . . 3 . 1 . . 2 Worker 27 | . . 1 . 2 . . 1 . 1 1 . . . . . . 8 . . . . . . . . . . . . . . 8 . 3 2 Builder 18 | . . . . 1 . . 3 . . . . . . . . . 5 . . . . . . . . . . . . . . 8 . 1 . Tunneler 5 | . . 1 . 1 . . . . . . . . . . . . 2 . . . . . . . . . 1 . . . . . . . . Hauler 24 | . 1 . . 6 . . . 2 6 . . . . 1 . . 3 . . . . . . . . . . . . . . 1 2 2 . Recycler 23 | . . 1 . 3 1 . 1 . 1 1 . . . . . . 7 . . . . . . . . . 1 . . . . 2 . 2 3 Minesweeper 3 | . . . . . . . . . . . . . . 1 . . . . . . . . . . . 2 . . . . . . . . . Mechanic 3 | . . . . . . . . . . . . . . . . . 2 . . . . . . . . . . . . . . . . . 1 Operator 9 | . . . . 3 . . . . . . . . . . . . 4 . . . . 1 . . . . . . . . . . . 1 . Watcher 17 | . 1 . . 4 . . . 3 2 . . . . . . . 2 . . . . 2 . . . . . . . . . 2 . . 1 Swarmer 82 | . 3 . 3 9 3 . 3 . 3 . 2 . . 4 . . . 2 1 . . . . 4 . . 3 8 . . . 6 . 6 22 Cutter 5 | . . . . . . . . . . . . . . . . . . . . . . . . . . . . . . . . . . . 5 Saboteur 8 | . . . . . . . . . . . . . . . . . 1 . . . . . . . . . . . . . . . . . 7 Grunt 221 | . 11 4 . 14 5 . 2 8 1 3 7 8 . 8 . . 24 2 2 . . 4 4 . . 5 14 4 . 13 . 8 . 10 60 Brawler 17 | . . . . . . . 1 . . . 4 . . 1 . . . . . . . . . . . . . 1 . 1 . . . 1 8 Duelist 8 | . . . . 1 . . . . . . 1 . . . . . . 1 . . . . . . . . . . . 1 . . . . 4 Protector 3 | . . . . . . . . . . . . . . . . . . . . . . . . . . . . . . 1 . 1 . . 1 Sentry 36 | . . . . 10 . . . . 10 . 2 . . . . . 4 . . . . . . 1 . . 3 2 . . . . 1 2 1 Specialist 14 | . . . . . . . . . . . . . . . . . . . . . . . . . . . . . . 1 . 5 . 2 6 Hunter 43 | . . . . . . . . . 1 1 2 . . . . . 6 . . . 1 . . . . 2 . 2 . . . 3 . 6 19 Programmer 78 | . . . . . . . . . . 2 . 1 . . . . 6 . . . . 5 . . . . 8 . 3 . . 16 1 7 29 Heavy 4 | . . . . . . . . . . . . . . . . . . . . . . . . . . . . . . . . 1 . 2 1 Behemoth 12 | . . . . . . . . . . . . . . . . . . 1 . . 1 . . . . . 2 1 . 2 . 1 . 1 3 Striker 3 | . . . . . . . . . . . . . . . . . . . . . . . . . . . . . . 1 . 1 . . 1 Executioner 2 | . . . . . . . . . . . . . . . . . . . . . . . . . . . . . . . . . . . 2 Artisan 1 | . . . 1 . . . . . . . . . . . . . . . . . . . . . . . . . . . . . . . . Subdweller 13 | . . . 13 . . . . . . . . . . . . . . . . . . . . . . . . . . . . . . . . Samaritan 3 | . . . . . . . . . . . . 3 . . . . . . . . . . . . . . . . . . . . . . . Tinkerer 1 | . . . . . . . . . . . . 1 . . . . . . . . . . . . . . . . . . . . . . . Assembled 1 | . . . . . 1 . . . . . . . . . . . . . . . . . . . . . . . . . . . . . . Mutant 2 | . . . . . . . . . . . . 1 . . . . . . 1 . . . . . . . . . . . . . . . . Best Kill Streak 96 | . 3 3 3 6 3 . 5 3 3 3 3 3 . 4 . . 13 2 2 . 1 3 3 4 . 3 9 7 2 8 . 25 1 8 96 Combat Bots Only 96 | . 3 2 3 5 3 . 3 3 3 3 3 3 . 4 . . 9 2 2 . 1 3 3 4 . 3 9 7 2 8 . 13 1 8 96 Max Kills in Single Turn 8 | . 1 1 1 4 2 . 3 1 2 2 1 2 . 2 . . 3 1 1 . 1 1 1 2 . 2 2 3 1 2 . 3 1 3 8 Gunslinging 1 | . . . . . . . . . . . . . . . . . 1 . . . . . . 1 . 1 . . . . . . . . . Exploded 8 | . . 1 . 3 2 . 2 1 . 2 . 2 . 2 . . 2 . . . . . . . . . 2 3 . 2 . 3 . 3 8 Melee 1 | . . . . . . . . . . . . . . . . . 1 . . . . . . . . . . . . . . . . . . Uniques/NPCs Destroyed . | . . . . . . . . . . . . . . . . . . . . . . . . . . . . . . . . . . . . Combat | -11 -10 -10 -10 -9 -9 -9 -8 -8 -8 -7 -7 -7 -7 -6 -6 -6 -6 -6 -6 -6 -5 -5 -5 -5 -5 -4 -4 -4 -4 -4 -3 -3 -2 -1 -1 -------- Run | Jun Mat Min Sub Mat Min Exi Min Mat Sto Fac Low Low Dat Pro Fac Was Fac Low Low Zio Pro Fac Upp Upp Zhi Pro Fac Upp Upp War Pro Res Res Acc Com Damage Taken 34811 | . 295 58 1423 1016 241 . 196 175 714 194 703 564 . 333 . 91 2913 875 190 . 627 659 18 135 . 537 1841 1109 184 133 . 8302 49 1462 9774 Core 3562 | . 34 . 60 68 38 . 18 . 56 . 76 44 . 58 . . 257 23 . . 65 47 . . . 55 34 10 . . . 1001 . 27 1591 Absorbed by Shields 6516 | . . . . . . . . . . 16 256 184 . 84 . . . . . . . . . 43 . 202 174 415 64 46 . 1278 49 1133 2572 Reduced by Siege Mode 1215 | . . . . . . . . . . . . . . . . . . . . . . . . . . . 17 40 . . . 249 8 105 796 Redirected to Shielding 159 | . 13 . . . . . . . . . . . . . . . 120 26 . . . . . . . . . . . . . . . . . Ignored by Resistances 2636 | . . . . . . . . . . . . . . . . . 67 . . . . . . . . . . . . . . . . 986 1583 Regen/Repaired (Parts) 1547 | . 135 . . 120 . . . . 344 . . . . . . . 85 . . 26 . . . . . . 293 . . 76 . . . . 468 Core Remaining (%) 75 | 100 . . 62 . . . 69 . 89 . . . . 74 . . . . . . 59 . . . . 89 . . . . 96 19 100 . . Volleys Fired 1367 | . 47 11 147 98 15 . 11 29 48 23 63 23 . 28 . 2 127 19 9 1 9 23 11 14 . 18 94 35 8 37 . 130 12 101 174 Largest 3 | . 2 2 2 2 2 . 2 2 2 2 2 2 . 2 . 1 2 2 2 1 2 3 3 3 . 3 3 3 3 2 . 3 3 3 3 Hottest 310 | . 63 46 130 53 88 . 88 88 88 88 88 88 . 88 . 36 180 160 63 30 65 93 93 103 . 138 262 295 295 105 . 308 260 260 310 Shots Fired 2449 | . 92 19 219 178 27 . 17 49 92 45 110 45 . 46 . 2 197 41 17 1 12 70 33 28 . 51 191 71 23 48 . 230 18 192 285 Gun 840 | . 92 16 144 169 . . . . . . . . . . . . 95 41 17 1 6 70 33 23 . 45 86 . . . . . 2 . . Cannon 1371 | . . . 7 . 25 . 12 46 92 44 110 44 . 36 . . 85 . . . 6 . . 5 . 6 102 65 23 24 . 211 16 183 229 Launcher 170 | . . 3 . 9 2 . 5 3 . 1 . 1 . 10 . 2 17 . . . . . . . . . 3 6 . 24 . 19 . 9 56 Special 68 | . . . 68 . . . . . . . . . . . . . . . . . . . . . . . . . . . . . . . . Kinetic 1425 | . 62 16 144 173 25 . 12 46 92 44 110 44 . 36 . . 39 . 17 1 6 70 33 23 . 45 99 1 . . . 145 4 71 67 Thermal 815 | . 28 . 62 . . . . . . . . . . . . . 121 41 . . 6 . . 5 . . 89 64 23 24 . 66 12 112 162 Explosive 62 | . . 3 . 5 2 . 5 . . . . 1 . 3 . 2 17 . . . . . . . . . . . . . . . . 9 15 Electromagnetic 134 | . 2 . . . . . . 3 . 1 . . . 7 . . 20 . . . . . . . . 6 3 6 . 24 . 19 2 . 41 Impact 13 | . . . 13 . . . . . . . . . . . . . . . . . . . . . . . . . . . . . . . . Robot Hit Streak 28 | . 12 4 21 13 10 . 3 14 10 7 9 13 . 6 . 1 16 19 6 . 2 8 6 3 . 12 16 11 14 15 . 18 9 28 25 Robot Miss Streak 7 | . 6 1 3 3 3 . 4 2 6 4 2 1 . 4 . 1 7 4 2 . 1 2 4 4 . 2 3 3 2 6 . 4 1 3 5 Penetration Max 1 | . . . . . . . . . . . . . . . . . . . . . . . . . . . 1 . . . . . . . . Secondary Targets 12 | . . . 1 . . . . . . . . . . . . . 1 3 1 . . . . 1 . 2 3 . . . . . . . . Max Gunslinging Chain 1 | . . . 1 . . . . . . . . . . . . . 1 1 1 . . . . 1 . 1 1 . . . . . . . . Shots Hit Robots 1588 | . 59 10 118 118 16 4 5 30 54 24 60 41 1 34 . 1 179 39 12 . 10 44 15 10 5 41 110 42 15 24 . 152 10 114 191 Core Hits 1328 | . 27 13 29 72 14 . 17 19 26 10 31 18 . 27 . 2 119 21 6 . 2 21 9 6 1 19 58 27 5 39 . 96 5 72 517 Critical Kills 12 | . 1 . . . . . . . . . . 2 . . . . . . . . . 2 3 1 . 2 1 . . . . . . . . Critical Parts Destroyed 15 | . . . . . . . . . . . . 1 . 1 . . 9 . . . . . . . . 2 2 . . . . . . . . Critical Strikes 68 | . 1 . 4 . 1 . 1 1 5 . . 4 . 3 . . 10 . . . . 2 3 1 . 4 5 . . . . 14 . 3 6 Destroy 14 | . 1 . . . . . . . . . . . . . . . . . . . . 2 3 1 . 4 3 . . . . . . . . Blast 36 | . . . . . 1 . 1 1 5 . . 1 . 2 . . . . . . . . . . . . 2 . . . . 14 . 3 6 Corrupt 1 | . . . . . . . . . . . . . . . . . 1 . . . . . . . . . . . . . . . . . . Smash 13 | . . . . . . . . . . . . 3 . 1 . . 9 . . . . . . . . . . . . . . . . . . Sever 4 | . . . 4 . . . . . . . . . . . . . . . . . . . . . . . . . . . . . . . . Melee Attacks 112 | . . . . . 2 4 . . 1 3 . 8 1 4 . 6 56 . . . 8 1 . . 7 . 2 1 . 2 . 3 . 1 2 Impact 77 | . . . . . . . . . . 3 . 8 . 4 . 6 56 . . . . . . . . . . . . . . . . . . Slashing 1 | . . . . . 1 . . . . . . . . . . . . . . . . . . . . . . . . . . . . . . Piercing 25 | . . . . . . . . . . . . . . . . . . . . . 8 1 . . 7 . 2 1 . . . 3 . 1 2 Sneak Attacks 33 | . . . . . 1 4 . . 1 1 . 8 1 . . . 13 . . . 1 . . . . . . . . 2 . . . . 1 Combat Hostiles 5 | . . . . . . . . . . . . . . . . . 4 . . . 1 . . . . . . . . . . . . . . Follow-up Attacks . | . . . . . . . . . . . . . . . . . . . . . . . . . . . . . . . . . . . . Damage Inflicted 94403 | . 843 419 1868 3133 564 . 696 906 1477 821 1569 1749 . 1895 . 259 9138 1038 312 . 190 1048 348 240 261 1182 4698 2315 663 3534 . 10478 455 8064 34240 Guns 12276 | . 827 174 1775 2044 . . . . . . . . . . . . 1824 1038 312 . 53 1046 348 240 . 945 1622 . . . . . 28 . . Cannons 34997 | . . . . . 342 . 92 724 1340 646 1569 855 . 634 . 25 2224 . . . . . . . . 237 2180 2086 663 483 . 7618 427 5297 7555 Explosions 42591 | . . 180 . 1071 210 . 571 147 . 76 . 150 . 885 . 234 2884 . . . . . . . . . 876 229 . 3051 . 2759 . 2758 26510 Melee 3879 | . . . . . . . . . . 99 . 738 . 376 . . 2184 . . . 137 2 . . 261 . . . . . . . . . 82 Ramming 567 | . 16 65 . 18 12 . 33 35 137 . . 6 . . . . 22 . . . . . . . . . 20 . . . . 101 . 9 93 Kinetic 28600 | . 622 174 1775 2683 342 . 92 724 1340 646 1569 855 . 634 . . 586 . 312 . 53 1046 348 240 . 945 1871 . . . . 6357 156 2424 2806 Thermal 27223 | . 190 . . . . . . . . . . . . . . . 2800 1038 . . . . . . . . 1931 2086 663 1019 . 1841 271 2873 12511 Explosive 17713 | . . 180 . 432 210 . 571 . . . . 150 . 649 . 234 2884 . . . . . . . . . 467 . . . . . . 2758 9178 Electromagnetic 16303 | . 15 . . . . . . 147 . 76 . . . 236 . . 662 . . . . . . . . 237 409 229 . 2515 . 2179 28 . 9570 Impact 3515 | . . . 93 . . . . . . 99 . 738 . 376 . 25 2184 . . . . . . . . . . . . . . . . . . Slashing . | . . . . . . . . . . . . . . . . . . . . . . . . . . . . . . . . . . . . Piercing 482 | . . . . . . . . . . . . . . . . . . . . . 137 2 . . 261 . . . . . . . . . 82 Highest Corruption 40 | . . . . . . . . . . 1 . . . . . 9 10 8 8 8 . 2 . . . . 1 . . . . 40 4 3 23 Average Corruption 7 | . . . . . . . . . . 1 . . . . . 6 7 8 8 8 . 1 . . . . 1 . . . . 16 2 2 5 Corruption Purged 32 | . . . . . . . . . . 1 . . . . . . 7 . . . . 3 . . . . 1 . . . . 8 5 5 2 Corruption Blocked 54 | . . . . . . . . . . . . . . . . . 8 . . . . . . . . . . . . . . . 46 . . Effects 283 | . . . . . . . . . . . . . . . . 4 107 33 32 2 . 6 . . . . 3 . . . . 43 1 18 34 Message Errors 63 | . . . . . . . . . . . . . . . . 1 25 8 9 1 . 1 . . . . 1 . . . . 7 . 3 7 Matter Fused 64 | . . . . . . . . . . . . . . . . 1 22 10 5 1 . 2 . . . . 1 . . . . 8 1 5 8 Heat Flow Errors 32 | . . . . . . . . . . . . . . . . . 14 2 9 . . . . . . . . . . . . 4 . . 3 Energy Discharges 25 | . . . . . . . . . . . . . . . . 1 12 3 4 . . . . . . . . . . . . 1 . 3 1 Parts Rejected 7 | . . . . . . . . . . . . . . . . 1 . 1 . . . . . . . . . . . . . 5 . . . Parts Fused 4 | . . . . . . . . . . . . . . . . . 2 1 . . . . . . . . . . . . . 1 . . . Data Loss (minor) 34 | . . . . . . . . . . . . . . . . . 14 3 4 . . 2 . . . . . . . . . 4 . 3 4 Data Loss (major) 12 | . . . . . . . . . . . . . . . . . 3 1 . . . . . . . . 1 . . . . 2 . 1 4 Misfires 16 | . . . . . . . . . . . . . . . . . 9 3 1 . . 1 . . . . . . . . . 1 . 1 . Alerts 5 | . . . . . . . . . . . . . . . . . 3 1 . . . . . . . . . . . . . 1 . . . Misdirections 9 | . . . . . . . . . . . . . . . . . . . . . . . . . . . . . . . . 5 . . 4 Weapon Failures 12 | . . . . . . . . . . . . . . . . . 3 . . . . . . . . . . . . . . 4 . 2 3 Overload Shots . | . . . . . . . . . . . . . . . . . . . . . . . . . . . . . . . . . . . . Overflow Damage 5322 | . . 10 . . 3 . . . . 81 3 341 . 305 . . 1342 . . . . . . . 160 . 167 118 47 4 . 724 . 470 1547 Projectiles 1733 | . . . . . 3 . . . . 7 3 . . 1 . . 79 . . . . . . . . . 146 118 47 4 . 588 . 246 491 Explosions 1595 | . . 10 . . . . . . . . . . . 35 . . 113 . . . . . . . . . 21 . . . . 136 . 224 1056 Melee 1994 | . . . . . . . . . . 74 . 341 . 269 . . 1150 . . . . . . . 160 . . . . . . . . . . Knockbacks 117 | . . . . . 2 . . 5 3 8 8 6 . 5 . . 9 . . . . . . . . . 1 . . . . 53 . 10 7 Impact 12 | . . . . . . . . . . 1 . 1 . 1 . . 9 . . . . . . . . . . . . . . . . . . Kinetic 94 | . . . . . 2 . . 4 3 7 8 5 . 4 . . . . . . . . . . . . 1 . . . . 45 . 10 5 Secondary 11 | . . . . . . . . 1 . . . . . . . . . . . . . . . . . . . . . . . 8 . . 2 Self-Inflicted Damage 976 | . . . . 127 . . 38 . . . . . . . . . 53 . . . . . . . . . . . . . . 329 . . 429 Shots 27 | . . . . 3 . . 1 . . . . . . . . . 1 . . . . . . . . . . . . . . 7 . . 15 Rammed 84 | . 6 10 1 3 2 . 5 1 22 . . 1 . . . . 2 . . . . . . . . . 2 . . . . 18 . 1 10 Targets Rammed 94 | . 6 11 1 3 2 . 6 4 27 . . 1 . . . . 2 . . . . . . . . . 2 . . . . 18 . 1 10 Kicked . | . . . . . . . . . . . . . . . . . . . . . . . . . . . . . . . . . . . . Crushed 10 | . . 1 . . . . 1 3 5 . . . . . . . . . . . . . . . . . . . . . . . . . . Highest Temperature 441 | . 26 12 . 52 5 . 51 90 221 62 20 14 . 380 . . 335 176 250 . 399 9 48 68 . 81 441 326 334 52 . 315 281 417 288 Average Temperature 72 | . 6 5 . 13 3 . 20 26 60 30 4 4 . 154 . . 62 47 106 . 208 6 22 32 . 28 106 115 174 35 . 88 102 110 79 Received Heat Transfer 4887 | . 126 30 102 213 18 . 36 99 135 26 207 324 . 115 . . 793 159 78 . 734 75 9 . . 26 249 157 . 12 . 647 4 44 469 Effects 5 | . . . . . . . . . . . . . . 1 . . . . . . . . . . . . 1 . 2 . . . . 1 . Shutdowns 2 | . . . . . . . . . . . . . . 1 . . . . . . . . . . . . . . . . . . . 1 . Energy Bleed 2 | . . . . . . . . . . . . . . . . . . . . . . . . . . . 1 . 1 . . . . . . Damage (minor) 1 | . . . . . . . . . . . . . . . . . . . . . . . . . . . . . 1 . . . . . . Siege Activations 44 | . . . . . . . . . . . . . . . . . . . . . . . . . . . 4 2 1 . . 10 1 12 14 Total Turns 769 | . . . . . . . . . . . . . . . . . . . . . . . . . . . 49 51 4 . . 208 6 190 261 Longest Duration 70 | . . . . . . . . . . . . . . . . . . . . . . . . . . . 18 26 4 . . 70 6 39 65 Robots Corrupted 46 | . . . . . . . . . . . . . . 1 . . 1 . . . . . . . . 1 2 . . 9 . 7 . . 25 Combat Hostiles 44 | . . . . . . . . . . . . . . 1 . . 1 . . . . . . . . 1 2 . . 9 . 5 . . 25 Parts Fried 143 | . . . . . . . . . . . . 1 . 1 . . 29 . . . . . . . . 3 5 1 . 26 . 21 . . 56 Impact Corruptions 73 | . . . . . . . . . . 2 . 17 . 11 . . 39 . . . . . . . . . . . . . . 3 . . 1 Robots Melted 6 | . . . . . . . . . . . . . . . . . . 2 . . . . . . . . 1 1 . 1 . . . . 1 Combat Hostiles 6 | . . . . . . . . . . . . . . . . . . 2 . . . . . . . . 1 1 . 1 . . . . 1 Parts Melted 35 | . . . . . . . . . . . . . . . . . 4 1 . . . . . . . . 4 4 3 1 . 2 . 1 15 Heat Transferred 26542 | . 400 . . . . . . . . . . . . . . . 4535 2117 . . . . . . . . 1865 2014 634 987 . 1498 222 2405 9865 Parts Sabotaged 2 | . . . . . . . . . . . . . . . . . 2 . . . . . . . . . . . . . . . . . . Parts Stolen . | . . . . . . . . . . . . . . . . . . . . . . . . . . . . . . . . . . . . Parts Stripped . | . . . . . . . . . . . . . . . . . . . . . . . . . . . . . . . . . . . . Power Chain Reactions 34 | . . . . . . . . . . . . . . . . . . . . . . . . . . . . . . 3 . 4 . . 27 Missiles Intercepted . | . . . . . . . . . . . . . . . . . . . . . . . . . . . . . . . . . . . . Alert | -11 -10 -10 -10 -9 -9 -9 -8 -8 -8 -7 -7 -7 -7 -6 -6 -6 -6 -6 -6 -6 -5 -5 -5 -5 -5 -4 -4 -4 -4 -4 -3 -3 -2 -1 -1 ------- Run | Jun Mat Min Sub Mat Min Exi Min Mat Sto Fac Low Low Dat Pro Fac Was Fac Low Low Zio Pro Fac Upp Upp Zhi Pro Fac Upp Upp War Pro Res Res Acc Com Peak Influence 5143 | . 242 277 . 447 370 . 119 162 304 246 . . . . 10 63 1282 . . . . 165 . . . . 616 . . . . 958 553 1077 5143 Initial 652 | . . 65 . . 173 . . . . 121 . . . . . 3 2 . . . . . . . . . . . . . . . 461 166 652 Average 316 | . 93 99 . 212 76 . 51 50 122 104 . . . . 7 17 363 . . . . 48 . . . . 332 . . . . 401 412 590 1322 Maximum Alert Level 5 | . 1 1 . 2 1 . . . 1 1 . . . . . . 4 . . . . . . . . . 2 . . . . 3 2 3 5 Low Security (%) 58 | 100 96 94 . 53 79 . 100 100 71 90 . . . . 100 100 51 . . . . 100 . . . . 16 . . . . 35 . 3 . Level 1 18 | . 3 5 . 25 20 . . . 28 9 . . . . . . 22 . . . . . . . . . 43 . . . . 16 55 45 . Level 2 8 | . . . . 20 . . . . . . . . . . . . 3 . . . . . . . . . 39 . . . . 28 44 8 9 Level 3 11 | . . . . . . . . . . . . . . . . . 15 . . . . . . . . . . . . . . 20 . 42 64 Level 4 2 | . . . . . . . . . . . . . . . . . 7 . . . . . . . . . . . . . . . . . 13 Level 5 . | . . . . . . . . . . . . . . . . . . . . . . . . . . . . . . . . . . . . High Security 1 | . . . . . . . . . . . . . . . . . . . . . . . . . . . . . . . . . . . 12 Max Security . | . . . . . . . . . . . . . . . . . . . . . . . . . . . . . . . . . . . . Squads Dispatched 113 | . 4 1 . 6 . . . 2 1 6 . . . . . . 20 . . . . 5 . . . . 9 . . . . 13 1 12 33 Investigation 14 | . 2 . . 3 . . . 1 . 1 . . . . . . 2 . . . . . . . . . 3 . . . . 2 . . . Extermination 32 | . . . . . . . . . . 3 . . . . . . 6 . . . . 4 . . . . 4 . . . . 5 . 3 7 Reinforcement 36 | . 2 . . 3 . . . 1 1 2 . . . . . . 6 . . . . 1 . . . . 1 . . . . 5 1 7 6 Assault 31 | . . 1 . . . . . . . . . . . . . . 6 . . . . . . . . . 1 . . . . 1 . 2 20 Garrison . | . . . . . . . . . . . . . . . . . . . . . . . . . . . . . . . . . . . . Intercept . | . . . . . . . . . . . . . . . . . . . . . . . . . . . . . . . . . . . . Searches Triggered . | . . . . . . . . . . . . . . . . . . . . . . . . . . . . . . . . . . . . Data Miner Redirects 16 | . . . . . . . . . . . . . . . . . 3 . . . . . . . . . 3 . . . . 3 . 2 5 Construction Impeded 4 | . . . . . . . . . . . . . . . . . 1 . . . . . . . . . 1 . . . . 1 . 1 . Haulers Reinforced 4 | . . . . . . . . . . . . . . . . . 2 . . . . . . . . . . . . . . 1 1 . . Active Scanning Responses . | . . . . . . . . . . . . . . . . . . . . . . . . . . . . . . . . . . . . Cargo Convoy Interrupts 2 | . . . . . . . . . . . . . . . . . 1 . . . . . . . . . . . . . . 1 . . . Stealth | -11 -10 -10 -10 -9 -9 -9 -8 -8 -8 -7 -7 -7 -7 -6 -6 -6 -6 -6 -6 -6 -5 -5 -5 -5 -5 -4 -4 -4 -4 -4 -3 -3 -2 -1 -1 --------- Run | Jun Mat Min Sub Mat Min Exi Min Mat Sto Fac Low Low Dat Pro Fac Was Fac Low Low Zio Pro Fac Upp Upp Zhi Pro Fac Upp Upp War Pro Res Res Acc Com Distress Signals 22 | . 1 . . 2 . . . . 1 . . . . . . . 1 . . . . . . . . . . . . 1 . 3 6 1 6 Communications Jammed 134 | . . . . . . . . 5 . 5 . . . . . . 47 . . . . . . . . . 3 . . . . 74 . . . Distress Signals 128 | . . . . . . . . 5 . 5 . . . . . . 44 . . . . . . . . . 3 . . . . 71 . . . Times Spotted 811 | . 22 12 21 44 15 . 6 17 21 25 14 11 . 11 . 6 65 17 6 . 6 19 10 5 . 7 34 13 4 21 . 89 7 40 243 Peak Tracking Total 67 | . 4 4 3 5 9 . 3 3 3 4 3 4 . 5 . 6 8 4 4 . 2 4 4 4 . 4 9 7 2 7 . 17 3 7 67 Tactical Retreats 32 | . 1 1 . 1 1 . . 1 . . . . . 1 . 2 3 . . . . . . . . . . . . 3 . 5 2 1 10 Traps | -11 -10 -10 -10 -9 -9 -9 -8 -8 -8 -7 -7 -7 -7 -6 -6 -6 -6 -6 -6 -6 -5 -5 -5 -5 -5 -4 -4 -4 -4 -4 -3 -3 -2 -1 -1 ------- Run | Jun Mat Min Sub Mat Min Exi Min Mat Sto Fac Low Low Dat Pro Fac Was Fac Low Low Zio Pro Fac Upp Upp Zhi Pro Fac Upp Upp War Pro Res Res Acc Com Traps Triggered 17 | . 1 . . 1 . . . . . 1 . . . . 1 . 4 . . . . 1 . . . . 1 . . 1 . . . 5 1 Indirectly 1 | . . . . . . . . . . . . . . . . . . . . . . . . . . . . . . 1 . . . . . Trap Hack Attempts 23 | . . . . . . . . . 23 . . . . . . . . . . . . . . . . . . . . . . . . . . Triggered . | . . . . . . . . . . . . . . . . . . . . . . . . . . . . . . . . . . . . Disarmed 2 | . . . . . . . . . . . . . . . . . . . . . . . . . . . . . . . . . . . 2 Reprogrammed 9 | . . . . . . . . . 9 . . . . . . . . . . . . . . . . . . . . . . . . . . Reused 2 | . . . 1 . . . . . 1 . . . . . . . . . . . . . . . . . . . . . . . . . . Traps Extracted . | . . . . . . . . . . . . . . . . . . . . . . . . . . . . . . . . . . . . Installed 1 | . . . 1 . . . . . . . . . . . . . . . . . . . . . . . . . . . . . . . . Triggered 10 | . . . . . . . . . 1 . . . . . . . 3 . . . . . 1 . . 1 . . . 3 1 . . . . Most Traps Carried 16 | . . . 1 . . . . . . . . . . . . . . . . . . . . . . 16 16 16 16 16 8 8 . . . Power Sources Rigged 8 | . . . . . . . . . 2 1 3 1 . . 1 . . . . . . . . . . . . . . . . . . . . Exploded 6 | . . . . . . . . . . 2 1 3 . . . . . . . . . . . . . . . . . . . . . . . Machines | -11 -10 -10 -10 -9 -9 -9 -8 -8 -8 -7 -7 -7 -7 -6 -6 -6 -6 -6 -6 -6 -5 -5 -5 -5 -5 -4 -4 -4 -4 -4 -3 -3 -2 -1 -1 ---------- Run | Jun Mat Min Sub Mat Min Exi Min Mat Sto Fac Low Low Dat Pro Fac Was Fac Low Low Zio Pro Fac Upp Upp Zhi Pro Fac Upp Upp War Pro Res Res Acc Com Machines Disabled 48 | . . . . 3 2 . 1 . 4 1 2 . . . . . 7 . . . . 3 . . 1 . 13 1 . . . 5 . 3 2 Max in Single Turn 3 | . . . . 1 2 . 1 . 1 . 1 . . . . . 1 . . . . 1 . . 1 . 2 1 . . . 3 . 1 1 Garrison Access 7 | . . . . . . . . . 1 1 . . . . 1 . 1 . . . . . . . . . . . . . . 1 1 1 . Phase Generator 1 | . . . . . . . . . . . . . . . . . . . . . . . . . . . . . . . . . . . 1 Machines Repaired . | . . . . . . . . . . . . . . . . . . . . . . . . . . . . . . . . . . . . Machines Sabotaged . | . . . . . . . . . . . . . . . . . . . . . . . . . . . . . . . . . . . . Overloaded Fab Kills . | . . . . . . . . . . . . . . . . . . . . . . . . . . . . . . . . . . . . Hacking | -11 -10 -10 -10 -9 -9 -9 -8 -8 -8 -7 -7 -7 -7 -6 -6 -6 -6 -6 -6 -6 -5 -5 -5 -5 -5 -4 -4 -4 -4 -4 -3 -3 -2 -1 -1 --------- Run | Jun Mat Min Sub Mat Min Exi Min Mat Sto Fac Low Low Dat Pro Fac Was Fac Low Low Zio Pro Fac Upp Upp Zhi Pro Fac Upp Upp War Pro Res Res Acc Com Machines Accessed 116 | . 8 . 1 12 1 4 . 8 16 8 . 2 3 . 2 . 6 . 1 . . 4 1 . 4 . 10 1 2 . . 6 1 5 10 Terminals 52 | . 5 . . 6 1 . . 6 11 2 . . . . . . 2 . . . . 1 . . . . 5 . 1 . . 2 . 2 8 Fabricators 10 | . . . . . . . . . . 4 . . . . . . . . . . . 1 . . . . 3 . . . . 1 . 1 . Repair Stations 10 | . 1 . . 2 . . . . 2 . . . . . . . 2 . . . . . . . . . 1 . . . . 1 . . 1 Recycling Units 13 | . 2 . . 2 . . . . 2 . . . . . . . 1 . . . . 2 . . . . 1 . . . . 1 . 1 1 Scanalyzers 6 | . . . . 2 . . . 2 . 1 . . . . 1 . . . . . . . . . . . . . . . . . . . . Garrison Access 7 | . . . . . . . . . 1 1 . . . . 1 . 1 . . . . . . . . . . . . . . 1 1 1 . Total Hacks 300 | . 25 . 1 35 2 7 . 24 42 20 . 2 25 . 5 . 14 . 1 . . 12 1 . 17 . 20 1 2 . . 13 1 9 21 Successful 189 | . 14 . 1 23 1 7 . 10 26 13 . 2 25 . 2 . 8 . 1 . . 8 1 . 17 . 8 1 2 . . 5 1 3 10 Failed 110 | . 11 . . 12 1 . . 14 16 6 . . . . 3 . 6 . . . . 4 . . . . 12 . . . . 8 . 6 11 Catastrophic 21 | . 2 . . 2 . . . 2 1 . . . . . 1 . . . . . . 2 . . . . 4 . . . . 1 . 2 4 Database Lockouts 1 | . . . . . . . . . . 1 . . . . . . . . . . . . . . . . . . . . . . . . . Manual 114 | . 15 . . 17 2 1 . 15 20 15 . . . . . . 2 . . . . 2 . . . . 10 . . 1 . 3 . 4 7 Terminals 130 | . 14 . . 15 2 . . 17 32 8 . . . . . . 5 . . . . 1 . . . . 11 . 1 . . 4 . 4 16 Fabricators 25 | . . . . . . . . . . 9 . . . . . . . . . . . 6 . . . . 5 . . . . 2 . 3 . Repair Stations 28 | . 4 . . 6 . . . . 6 . . . . . . . 4 . . . . . . . . . 2 . . . . 3 . . 3 Recycling Units 31 | . 7 . . 6 . . . . 3 . . . . . . . 2 . . . . 5 . . . . 2 . . . . 3 . 1 2 Scanalyzers 18 | . . . . 8 . . . 7 . 1 . . . . 2 . . . . . . . . . . . . . . . . . . . . Garrison Access 12 | . . . . . . . . . 1 2 . . . . 3 . 3 . . . . . . . . . . . . . . 1 1 1 . Terminal Hacks 100 | . 5 . 1 4 1 7 . 4 14 5 . 2 25 . . . 3 . 1 . . . 1 . 17 . . 1 2 . . . . 1 6 Record 19 | . . . 1 . . 6 . . . . . . 6 . . . . . . . . . . . 5 . . . 1 . . . . . . Part Schematic 18 | . . . . 1 1 . . . . . . . 12 . . . . . . . . . . . 4 . . . . . . . . . . Robot Schematic 4 | . . . . . . . . . . . . . 4 . . . . . . . . . . . . . . . . . . . . . . Robot Analysis 13 | . 3 . . 1 . . . 3 . 2 . . . . . . . . . . . . . . 4 . . . . . . . . . . Prototype ID Bank 9 | . . . . 1 . . . . 1 . . . 3 . . . . . . . . . . . 4 . . . . . . . . . . Open Door 10 | . . . . . . . . . 4 . . 2 . . . . . . 1 . . . 1 . . . . 1 1 . . . . . . Branch Access Points 2 | . . . . . . . . . . 1 . . . . . . . . . . . . . . . . . . . . . . . 1 . Machine Index 2 | . . . . . . . . . . . . . . . . . 1 . . . . . . . . . . . . . . . . . 1 Alert Level 2 | . . . . . . . . . 1 1 . . . . . . . . . . . . . . . . . . . . . . . . . Unreport Threat 5 | . . . . 1 . . . . 4 . . . . . . . . . . . . . . . . . . . . . . . . . . Locate Traps 6 | . 1 . . . . . . 1 1 . . . . . . . 1 . . . . . . . . . . . . . . . . . 2 Disarm Traps 1 | . . . . . . . . . . . . . . . . . . . . . . . . . . . . . . . . . . . 1 Reprogram Traps 2 | . . . . . . . . . 2 . . . . . . . . . . . . . . . . . . . . . . . . . . Registered Components 1 | . . . . . . . . . . . . . . . . . 1 . . . . . . . . . . . . . . . . . . Zone Layout 3 | . 1 . . . . . . . 1 1 . . . . . . . . . . . . . . . . . . . . . . . . . Derelict Proto ID Bank 1 | . . . . . . 1 . . . . . . . . . . . . . . . . . . . . . . . . . . . . . Disengage Seal 2 | . . . . . . . . . . . . . . . . . . . . . . . . . . . . . . . . . . . 2 Fabricator Hacks 11 | . . . . . . . . . . 1 . . . . . . . . . . . 5 . . . . 2 . . . . 2 . 1 . Network Status 4 | . . . . . . . . . . 1 . . . . . . . . . . . 1 . . . . 1 . . . . . . 1 . Load Schematic 3 | . . . . . . . . . . . . . . . . . . . . . . 2 . . . . . . . . . 1 . . . Build 4 | . . . . . . . . . . . . . . . . . . . . . . 2 . . . . 1 . . . . 1 . . . Repair Station Hacks 19 | . 4 . . 5 . . . . 4 . . . . . . . 2 . . . . . . . . . 2 . . . . . . . 2 Scan Component 10 | . 2 . . 3 . . . . 2 . . . . . . . 1 . . . . . . . . . 1 . . . . . . . 1 Repair 9 | . 2 . . 2 . . . . 2 . . . . . . . 1 . . . . . . . . . 1 . . . . . . . 1 Recycling Unit Hacks 7 | . 1 . . 2 . . . . 1 . . . . . . . 1 . . . . 1 . . . . . . . . . 1 . . . Process 1 | . . . . . . . . . . . . . . . . . 1 . . . . . . . . . . . . . . . . . . Retrieve Components 6 | . 1 . . 2 . . . . 1 . . . . . . . . . . . . 1 . . . . . . . . . 1 . . . Scanalyzer 12 | . . . . 7 . . . 4 . . . . . . 1 . . . . . . . . . . . . . . . . . . . . Insert Component 6 | . . . . 3 . . . 2 . . . . . . 1 . . . . . . . . . . . . . . . . . . . . Analyze 6 | . . . . 4 . . . 2 . . . . . . . . . . . . . . . . . . . . . . . . . . . Garrison Access Hacks 5 | . . . . . . . . . 1 1 . . . . 1 . . . . . . . . . . . . . . . . . 1 1 . Seal Access 5 | . . . . . . . . . 1 1 . . . . 1 . . . . . . . . . . . . . . . . . 1 1 . Unauthorized Hacks 35 | . 4 . . 5 . . . 2 6 6 . . . . . . 2 . . . . 2 . . . . 4 . . . . 2 . . 2 Terminals 16 | . 3 . . 1 . . . 2 4 1 . . . . . . 1 . . . . . . . . . 2 . . . . 1 . . 1 Assimilate 5 | . 1 . . . . . . . 2 . . . . . . . . . . . . . . . . . 1 . . . . 1 . . . Botnet 10 | . 1 . . 1 . . . 2 2 1 . . . . . . 1 . . . . . . . . . 1 . . . . . . . 1 Disrupt 1 | . 1 . . . . . . . . . . . . . . . . . . . . . . . . . . . . . . . . . . Fabricators 6 | . . . . . . . . . . 4 . . . . . . . . . . . 1 . . . . 1 . . . . . . . . Prioritize 1 | . . . . . . . . . . . . . . . . . . . . . . 1 . . . . . . . . . . . . . Liberate 3 | . . . . . . . . . . 2 . . . . . . . . . . . . . . . . 1 . . . . . . . . Fabnet 2 | . . . . . . . . . . 2 . . . . . . . . . . . . . . . . . . . . . . . . . Repair Stations . | . . . . . . . . . . . . . . . . . . . . . . . . . . . . . . . . . . . . Recycling Units 11 | . 1 . . 3 . . . . 2 . . . . . . . 1 . . . . 1 . . . . 1 . . . . 1 . . 1 Reject 9 | . . . . 2 . . . . 2 . . . . . . . 1 . . . . 1 . . . . 1 . . . . 1 . . 1 Mask 1 | . . . . 1 . . . . . . . . . . . . . . . . . . . . . . . . . . . . . . . Tunnel 1 | . 1 . . . . . . . . . . . . . . . . . . . . . . . . . . . . . . . . . . Scanalyzers 2 | . . . . 1 . . . . . 1 . . . . . . . . . . . . . . . . . . . . . . . . . Extract 2 | . . . . 1 . . . . . 1 . . . . . . . . . . . . . . . . . . . . . . . . . Garrison Access . | . . . . . . . . . . . . . . . . . . . . . . . . . . . . . . . . . . . . Data Cores Recovered 2 | . . . . 1 . . . . 1 . . . . . . . . . . . . . . . . . . . . . . . . . . Used . | . . . . . . . . . . . . . . . . . . . . . . . . . . . . . . . . . . . . Hacking Detections 77 | . 7 . . 10 1 . . 8 9 6 . . . . 1 . 6 . . . . 4 . . . . 7 . . . . 5 . 4 9 Full Trace Events 10 | . 1 . . 1 . . . 2 . . . . . . . . 1 . . . . . . . . . 3 . . . . 2 . . . Feedback Events . | . . . . . . . . . . . . . . . . . . . . . . . . . . . . . . . . . . . . Feedback Blocked . | . . . . . . . . . . . . . . . . . . . . . . . . . . . . . . . . . . . . Robot Schematics Acquired 8 | . . . . . . . . . . . . . 4 . . . . . . 4 . . . . . . . . . . . . . . . Robots Built 2 | . . . . . . . . . . . . . . . . . . . . . . 2 . . . . . . . . . . . . . Authchips 2 | . . . . . . . . . . . . . . . . . . . . . . 2 . . . . . . . . . . . . . Time 178 | . . . . . . . . . . . . . . . . . . . . . . 178 . . . . . . . . . . . . . Total Robot Build Rating 13 | . . . . . . . . . . . . . . . . . . . . . . 13 . . . . . . . . . . . . . Part Schematics Acquired 40 | . . . . 5 1 . . 1 . 3 . . 12 . . . . . . 14 . . . . 4 . . . . . . . . . . Parts Built 2 | . . . . . . . . . . . . . . . . . . . . . . . . . . . 2 . . . . . . . . Authchips . | . . . . . . . . . . . . . . . . . . . . . . . . . . . . . . . . . . . . Time 153 | . . . . . . . . . . . . . . . . . . . . . . . . . . . 69 . . . . 84 . . . Total Part Build Rating 18 | . . . . . . . . . . . . . . . . . . . . . . . . . . . 18 . . . . . . . . Parts Repaired 9 | . 2 . . 2 . . . . 2 . . . . . . . 1 . . . . . . . . . 1 . . . . . . . 1 Time 274 | . 52 . . 58 . . . . 64 . . . . . . . 40 . . . . . . . . . 44 . . . . . . . 16 Parts Recycled . | . . . . . . . . . . . . . . . . . . . . . . . . . . . . . . . . . . . . Recycled Matter 1 | . . . . . . . . . . . . . . . . . 1 . . . . . . . . . . . . . . . . . . Retrieved Matter . | . . . . . . . . . . . . . . . . . . . . . . . . . . . . . . . . . . . . Retrieved Components 19 | . 9 . . 3 . . . . 4 . . . . . . . . . . . . 2 . . . . . . . . . 1 . . . Parts Scanalyzed 5 | . . . . 3 . . . 1 . . . . . . 1 . . . . . . . . . . . . . . . . . . . . Part Schematics Acquired 4 | . . . . 3 . . . 1 . . . . . . . . . . . . . . . . . . . . . . . . . . . Parts Damaged 1 | . . . . . . . . . . . . . . . 1 . . . . . . . . . . . . . . . . . . . . Bothacking | -11 -10 -10 -10 -9 -9 -9 -8 -8 -8 -7 -7 -7 -7 -6 -6 -6 -6 -6 -6 -6 -5 -5 -5 -5 -5 -4 -4 -4 -4 -4 -3 -3 -2 -1 -1 ------------ Run | Jun Mat Min Sub Mat Min Exi Min Mat Sto Fac Low Low Dat Pro Fac Was Fac Low Low Zio Pro Fac Upp Upp Zhi Pro Fac Upp Upp War Pro Res Res Acc Com Used RIF Installer . | . . . . . . . . . . . . . . . . . . . . . . . . . . . . . . . . . . . . Robots Hacked 13 | . . . . . 1 4 . . 1 . . . 1 1 . . 2 . . . . 1 . . . . . . . 2 . . . . . Non-combat 4 | . . . . . . 3 . . 1 . . . . . . . . . . . . . . . . . . . . . . . . . . Combat 9 | . . . . . 1 1 . . . . . . 1 1 . . 2 . . . . 1 . . . . . . . 2 . . . . . Robot Hacks Applied 9 | . . . . . 1 4 . . 1 . . . 1 . . . . . . . . . . . . . . . . 2 . . . . . parse_system 8 | . . . . . 1 4 . . . . . . 1 . . . . . . . . . . . . . . . . 2 . . . . . no_distress 1 | . . . . . . . . . 1 . . . . . . . . . . . . . . . . . . . . . . . . . . Relay Couplers Released 4 | . . . . . . . . . . . . . . . . . 1 . . . . . . . . . . . . . . . 3 . . Machine Destruction 1 | . . . . . . . . . . . . . . . . . 1 . . . . . . . . . . . . . . . . . . Programmers 3 | . . . . . . . . . . . . . . . . . . . . . . . . . . . . . . . . . 3 . . Fabnet Peak Effective % 6 | . . . . . . . . . . . . . . 6 6 6 6 6 6 6 2 2 2 2 2 . . . . . . . . . . Autooverrided 4 | . . . . . . . . . . . . . . 1 . . 2 . . . . 1 . . . . . . . . . . . . . Robots Rewired 4 | . . . . . . . . . . . 2 . . . . . . . . . . . . . . . . 2 . . . . . . . Allies Hacked . | . . . . . . . . . . . . . . . . . . . . . . . . . . . . . . . . . . . . Hacks Repelled . | . . . . . . . . . . . . . . . . . . . . . . . . . . . . . . . . . . . . Allies | -11 -10 -10 -10 -9 -9 -9 -8 -8 -8 -7 -7 -7 -7 -6 -6 -6 -6 -6 -6 -6 -5 -5 -5 -5 -5 -4 -4 -4 -4 -4 -3 -3 -2 -1 -1 -------- Run | Jun Mat Min Sub Mat Min Exi Min Mat Sto Fac Low Low Dat Pro Fac Was Fac Low Low Zio Pro Fac Upp Upp Zhi Pro Fac Upp Upp War Pro Res Res Acc Com Total Allies 30 | . . 6 . . . . . . 10 . 2 . . 2 . . 3 . . . . 3 . . . . 1 2 . . . 1 . . . Largest Group 10 | . . 5 5 . . . . . 10 10 2 2 . 1 . . 1 1 1 1 1 2 1 1 . . 1 2 2 1 1 1 . . . Highest-Rated Group 173 | . . 102 102 . . . . . 173 173 32 32 . 96 . . 99 98 98 98 98 107 67 67 . . 10 97 97 49 49 49 . . . Highest-Rated Ally 99 | . . 31 31 . . . . . 29 29 16 16 . 96 . . 99 98 98 98 98 67 67 67 . . 10 49 49 49 49 49 . . . Total Orders 22 | . . . . . . . . . 2 4 . . . . . . . 1 . . . 5 . . . . 4 . . 2 . 3 . 1 . STAY 10 | . . . . . . . . . 1 2 . . . . . . . . . . . 3 . . . . 1 . . 1 . 2 . . . FOLLOW 7 | . . . . . . . . . 1 2 . . . . . . . . . . . 1 . . . . 1 . . 1 . 1 . . . EXPLORE 1 | . . . . . . . . . . . . . . . . . . 1 . . . . . . . . . . . . . . . . . RETURN 4 | . . . . . . . . . . . . . . . . . . . . . . 1 . . . . 2 . . . . . . 1 . Ally Attacks 345 | . . 33 44 . . . . . 27 140 . 6 . 15 . . 17 23 7 1 11 2 7 . . . . . 7 1 . 4 . . . Total Damage 9314 | . . 414 545 . . . . . 407 1907 . 60 . 286 . . 1116 1564 435 66 814 197 1121 . . . . . 211 52 . 119 . . . Kills 74 | . . 7 7 . . . . . 6 17 . . . . . . 7 12 4 . 5 . 7 . . . . . 1 . . 1 . . . Allies Corrupted . | . . . . . . . . . . . . . . . . . . . . . . . . . . . . . . . . . . . . Allies Melted 2 | . . . . . . . . . . . . . . 1 . . . . . . . . . . . . . . . . . . 1 . . Intel | -11 -10 -10 -10 -9 -9 -9 -8 -8 -8 -7 -7 -7 -7 -6 -6 -6 -6 -6 -6 -6 -5 -5 -5 -5 -5 -4 -4 -4 -4 -4 -3 -3 -2 -1 -1 ------- Run | Jun Mat Min Sub Mat Min Exi Min Mat Sto Fac Low Low Dat Pro Fac Was Fac Low Low Zio Pro Fac Upp Upp Zhi Pro Fac Upp Upp War Pro Res Res Acc Com Robot Analysis Total 13 | . 3 . . 1 . . . 3 . 2 . . . . . . . . . . . . . . 4 . . . . . . . . . . Derelict Logs Recovered 23 | . . 1 1 . 1 . . . . . 2 2 . 1 . . . 2 1 3 1 . 2 1 . 2 . 2 1 . . . . . . Drone Launches 5 | . . . . . . . . . . . . . . . . . . 1 . . . 1 . . . . 2 . . . . . . 1 . Drone Recoveries 5 | . . . . . . . . . . . . . . . . . . 1 . . . 1 . . . . 2 . . . . . . 1 . Exploration | -11 -10 -10 -10 -9 -9 -9 -8 -8 -8 -7 -7 -7 -7 -6 -6 -6 -6 -6 -6 -6 -5 -5 -5 -5 -5 -4 -4 -4 -4 -4 -3 -3 -2 -1 -1 ------------- Run | Jun Mat Min Sub Mat Min Exi Min Mat Sto Fac Low Low Dat Pro Fac Was Fac Low Low Zio Pro Fac Upp Upp Zhi Pro Fac Upp Upp War Pro Res Res Acc Com Turns Passed 62255 | 11 1111 1199 5459 3152 3027 1264 1391 1652 2968 2208 2509 4318 227 3870 176 193 3503 966 962 1873 1602 1322 972 856 223 873 1483 1904 1711 1090 1114 1399 895 1775 2997 Spaces Moved 30842 | 5 504 680 3280 1563 1042 462 505 552 929 1034 1378 1933 90 1503 99 109 1784 622 586 970 766 607 804 711 164 684 764 1149 1118 639 687 541 706 788 1084 Core 213 | . . . . . . . . . . . . . . . . . . . . . . . . . . . . . . . . 87 37 . 89 Treads 16293 | 5 504 680 1422 1357 1042 462 505 552 929 350 . 1187 90 1346 . . 9 . . . . . . . . . 444 1149 1118 639 687 369 . 455 992 Legs 2358 | . . . . . . . . . . . . . . . . . . . 176 970 766 446 . . . . . . . . . . . . . Wheels 11975 | . . . 1858 206 . . . . . 684 1378 746 . 157 99 109 1775 622 410 . . 161 804 711 164 684 320 . . . . 85 669 333 . Hover . | . . . . . . . . . . . . . . . . . . . . . . . . . . . . . . . . . . . . Flight 3 | . . . . . . . . . . . . . . . . . . . . . . . . . . . . . . . . . . . 3 Fastest Speed 45 | 160 160 160 95 125 160 160 260 260 241 145 145 145 250 160 160 100 115 125 140 190 190 115 115 115 115 112 112 145 145 145 161 50 50 130 45 Average Speed 167 | 160 160 160 138 157 160 242 260 260 256 179 152 210 250 240 167 136 134 139 155 190 190 171 115 115 115 113 135 148 149 145 161 147 106 146 202 Slowest Speed 480 | 160 160 160 240 240 160 260 260 260 260 243 160 250 250 250 175 175 480 140 190 190 193 193 115 115 115 115 155 150 153 161 161 241 130 240 246 Overloaded Moves . | . . . . . . . . . . . . . . . . . . . . . . . . . . . . . . . . . . . . Propulsion Burnouts . | . . . . . . . . . . . . . . . . . . . . . . . . . . . . . . . . . . . . Robots Hopped . | . . . . . . . . . . . . . . . . . . . . . . . . . . . . . . . . . . . . Cave-ins Triggered . | . . . . . . . . . . . . . . . . . . . . . . . . . . . . . . . . . . . . Teleports 1 | . . . . . . . . . . . . . . . . . . . . . . . . . . . . . . . . 1 . . . Exploration Rate (%) 65 | 2 68 100 95 85 98 72 36 34 95 26 97 97 74 96 3 92 35 88 76 83 79 15 93 90 60 71 28 97 99 83 83 16 23 22 48 Regions Visited 35 Branch Regions 23 Pre-discovered Areas 15 | . 1 2 1 . . 1 . . . . 1 . 1 . . . . . . 1 . . 1 . 3 1 . 1 1 . . . . . . Known Exits Taken 12 | . . . . . . . . 1 . 1 . . . . . . 1 1 1 1 1 1 . . . . . 1 1 . 1 . . 1 . Unknown Exits Taken 21 | 1 1 1 1 1 1 1 1 . 1 . 1 1 1 1 . . . . . . . . 1 1 1 1 1 . . 1 . 1 1 . . Scrap Searched 52 | . . 1 4 . 2 . 2 . . . 4 4 . 4 . . . 3 2 5 2 . 3 2 . 3 . 3 3 . 5 . . . . Spaces Dug 239 | . . . 5 1 15 . 24 3 . . 3 . . 24 . 6 13 . . . 6 . . 2 . . 18 6 . 7 . 6 5 38 57 Terrain Destroyed 1110 | . . 25 5 66 26 . 46 7 13 2 6 5 . 36 . 23 126 . . . 6 8 9 16 . 6 58 28 4 14 . 70 5 146 354 Melee 17 | . . . . . 1 . . . . . . . . . . 6 10 . . . . . . . . . . . . . . . . . . Projectile 352 | . . . 5 3 3 . 3 7 13 2 6 2 . 4 . . 10 . . . 6 8 9 16 . 6 34 28 4 7 . 57 5 56 58 AOE 741 | . . 25 . 63 22 . 43 . . . . 3 . 32 . 17 106 . . . . . . . . . 24 . . 7 . 13 . 90 296 Terrain Rammed . | . . . . . . . . . . . . . . . . . . . . . . . . . . . . . . . . . . . . Walls Destroyed . | . . . . . . . . . . . . . . . . . . . . . . . . . . . . . . . . . . . . Machines Disabled . | . . . . . . . . . . . . . . . . . . . . . . . . . . . . . . . . . . . . Actions | -11 -10 -10 -10 -9 -9 -9 -8 -8 -8 -7 -7 -7 -7 -6 -6 -6 -6 -6 -6 -6 -5 -5 -5 -5 -5 -4 -4 -4 -4 -4 -3 -3 -2 -1 -1 --------- Run | Jun Mat Min Sub Mat Min Exi Min Mat Sto Fac Low Low Dat Pro Fac Was Fac Low Low Zio Pro Fac Upp Upp Zhi Pro Fac Upp Upp War Pro Res Res Acc Com Total 38889 | 7 729 768 3860 2089 2375 611 558 718 1384 1338 1670 2119 92 1702 110 138 2551 673 624 1001 888 830 834 732 187 743 1074 1281 1144 767 698 907 837 1256 1594 Wait 5014 | . 131 64 310 336 1280 133 24 109 304 239 177 109 . 121 . 8 457 14 10 7 83 159 11 1 . 18 131 41 12 54 1 136 25 273 236 Move 30808 | 4 503 679 3279 1562 1041 461 504 551 928 1033 1377 1932 89 1502 99 108 1783 621 585 969 765 606 803 710 163 683 763 1148 1117 638 686 540 705 787 1084 Hop . | . . . . . . . . . . . . . . . . . . . . . . . . . . . . . . . . . . . . Pick Up 258 | . 14 1 27 16 5 2 4 8 15 8 5 11 . 10 3 1 25 5 4 8 2 4 2 1 2 4 12 6 1 3 3 8 24 8 6 Fast Attach 221 | . 5 . 13 15 . . 1 1 7 2 . 1 . 5 1 2 33 3 3 . 5 8 1 . 6 . 13 5 3 10 . 17 28 20 13 Attach 118 | . . . 3 2 3 2 1 3 4 2 . 6 . 5 1 2 10 4 3 . . 3 . . . . 11 3 . . . 17 7 4 22 Detach 79 | . 2 . 3 4 2 1 . . 2 2 . 3 . . . 2 11 3 2 . 1 . 1 . . . 5 1 . 2 . 7 10 5 10 Swap 343 | 3 8 2 31 22 12 3 3 4 9 15 9 11 2 12 3 5 22 1 4 7 9 15 3 4 2 15 23 8 . 5 4 15 6 27 19 Drop 361 | . 13 . 28 29 11 5 4 9 14 10 5 13 . 15 2 2 25 3 4 9 6 11 2 2 7 5 18 9 3 16 4 16 20 29 12 Fire 1367 | . 47 11 147 98 15 . 11 29 48 23 63 23 . 28 . 2 127 19 9 1 9 23 11 14 . 18 94 35 8 37 . 130 12 101 174 Melee 112 | . . . . . 2 4 . . 1 3 . 8 1 4 . 6 56 . . . 8 1 . . 7 . 2 1 . 2 . 3 . 1 2 Ram 2 | . . . . . . . . . . . . . . . . . 2 . . . . . . . . . . . . . . . . . . Kick . | . . . . . . . . . . . . . . . . . . . . . . . . . . . . . . . . . . . . Crush 92 | . 6 11 1 3 2 . 6 4 27 . . 1 . . . . . . . . . . . . . . 2 . . . . 18 . 1 10 Escape Stasis 6 | . . . . . . . . . . . . . . . . . . . . . . . . . . . . . . . . . . . 6 Rewire 57 | . . . . . 2 . . . . . 31 . . . . . . . . . . . . . . . . 24 . . . . . . . Trap 32 | . . . 1 . . . . . 25 1 3 1 . . 1 . . . . . . . . . . . . . . . . . . . . Miscellaneous 19 | . . . 17 2 . . . . . . . . . . . . . . . . . . . . . . . . . . . . . . . Route ------- -11/Junkyard -10/Materials (discovered 3 exits: *Mat / [*Min] / *Sub) -10/Mines (discovered 3 exits: *Mat x2 / *Sub) -10/Subcaves (discovered 2 exits: *Mat / *Mat) -9/Materials (discovered 4 exits: *Mat x2 / *Min x2) -9/Mines (discovered 3 exits: *Mat x2 / *Exi) -9/Exiles -8/Mines -8/Materials -8/Storage -7/Factory (discovered 2 exits: *Low x2) -7/Lower Caves -7/Lower Caves (discovered 2 exits: *Fac / *Dat) -7/Data Miner -6/Proximity Caves -6/Factory -6/Waste -6/Factory -6/Lower Caves -6/Lower Caves (discovered 2 exits: *Fac / *Zio) -6/Zion -5/Proximity Caves -5/Factory -5/Upper Caves -5/Upper Caves (discovered 2 exits: *Fac / *Zhi) -5/Zhirov -4/Proximity Caves -4/Factory (discovered 5 exits: *Res x4 / *Upp) -4/Upper Caves -4/Upper Caves (discovered 2 exits: *Res / *War) -4/Warlord -3/Proximity Caves -3/Research (discovered 2 exits: *Res x2) -2/Research (discovered 2 exits: *Acc / *Tes) -1/Access -1/Command History --------- Turn | Location | Event 6 | -11/Junkyard | Discovered new exit (range 3) 12 | -11/Junkyard | Entered Materials 302 | -10/Materials | Build established: Mutant 439 | -10/Materials | Discovered new exit (range 3) 824 | -10/Materials | Discovered new exit (range 10) 937 | -10/Materials | Repaired Lgt. Treads 964 | -10/Materials | Repaired Lgt. Treads 1011 | -10/Materials | Discovered new exit (range 9) 1123 | -10/Materials | Entered Mines 1124 | -10/Mines | Learned location of Storage (-8) 1238 | -10/Mines | Discovered new exit (range 9) 1473 | -10/Mines | Assisted by bots powering up and referring to "LRC-V3" 1632 | -10/Mines | Learned location of Recycling (-8) 1634 | -10/Mines | Discovered new exit (range 5) 1795 | -10/Mines | Met a Derelict testing a Signal Generator 1832 | -10/Mines | Discovered new exit (range 11) 2322 | -10/Mines | Entered Subcaves 2322 | -10/Subcaves | Accompanied by 5 allies 2327 | -10/Subcaves | Led the pair of lost Derelicts to an unsafe place 2636 | -10/Subcaves | Learned location of Zion (-6) 2636 | -10/Subcaves | Met a Zionite searching for "candidates" 2753 | -10/Subcaves | Discovered new exit (range 13) 3079 | -10/Subcaves | Discovered new exit (range 16) 3139 | -10/Subcaves | Disturbed a concealed Subdweller 3768 | -10/Subcaves | A swath of the cavern ceiling suddenly collapsed 3898 | -10/Subcaves | Shifting Twisted Machinery released Flamer 3901 | -10/Subcaves | Shifting Twisted Machinery released Flamer 3921 | -10/Subcaves | Shifting Twisted Machinery released Piercing Trap 3963 | -10/Subcaves | Shifting Twisted Machinery released Sub. Shrapnel Launcher 4176 | -10/Subcaves | Visited Clippyterm 4284 | -10/Subcaves | Learned Materials security intel 5746 | -10/Subcaves | Build established: Subdweller-Mutant 5933 | -10/Subcaves | Shifting Twisted Machinery released Sub. Beam Cannon 5941 | -10/Subcaves | Shifting Twisted Machinery released Sub. Power Source 6131 | -10/Subcaves | A swath of the cavern ceiling suddenly collapsed 6902 | -10/Subcaves | Disturbed a concealed Subdweller 7781 | -10/Subcaves | Entered Materials 7781 | -9/Materials | Evolved 2 slots: Propulsion x1, Utility x1 8171 | -9/Materials | Discovered new exit (range 7) 8463 | -9/Materials | Build established: Scavenger-Mutant 8741 | -9/Materials | Discovered new exit (range 5) 8842 | -9/Materials | Discovered new exit (range 12) 8889 | -9/Materials | Repaired Lgt. Armor Plating 9610 | -9/Materials | Repaired Autogun 10017 | -9/Materials | Discovered new exit (range 5) 10884 | -9/Materials | Build established: Mutant 10933 | -9/Materials | Entered Mines 10969 | -9/Mines | Deemed a non-threat by the Exiles lab entrance 10970 | -9/Mines | Discovered new exit (range 5) 11090 | -9/Mines | Discovered new exit (range 15) 11511 | -9/Mines | A weapon hastily lodged in a ceiling crevice suddenly fell to the ground 11621 | -9/Mines | Discovered new exit (range 7) 11771 | -9/Mines | Assembled infested the area 11820 | -9/Mines | Met 8R-AWN 13960 | -9/Mines | Entered Exiles 14002 | -9/Exiles | Welcomed by 8R-AWN 14032 | -9/Exiles | Met EX-HEX 14142 | -9/Exiles | Met EX-DEC 14266 | -9/Exiles | Met EX-BIN 14311 | -9/Exiles | Aligned with FarCom system 14313 | -9/Exiles | Given EX-Vault access code 14373 | -9/Exiles | Opened EX-Vault 14394 | -9/Exiles | Found PSU Rigger 14530 | -9/Exiles | Warned to stay clear of 0b10 Research branches 15195 | -9/Exiles | Discovered new exit (range 14) 15224 | -9/Exiles | Left Exiles lab with PSU Rigger 15224 | -9/Exiles | Entered Mines 15434 | -8/Mines | Discovered new exit (range 9) 16241 | -8/Mines | Build established: Derelict-Mutant 16615 | -8/Mines | Entered Materials 16615 | -8/Materials | Evolved 2 slots: Utility x2 16616 | -8/Materials | Identified exit to Storage 18267 | -8/Materials | Entered Storage 18581 | -8/Storage | Repaired Huge Storage Unit 18627 | -8/Storage | Repaired Assault Cannon 19423 | -8/Storage | Assisted by bots powering up and referring to "LRC-V3" 19707 | -8/Storage | Build established: Commander-Mutant 19874 | -8/Storage | Discovered new exit (range 10) 21235 | -8/Storage | Entered Factory 21235 | -7/Factory | Accompanied by 10 allies 21235 | -7/Factory | Evolved 2 slots: Propulsion x1, Utility x1 22529 | -7/Factory | Build established: Mutant 22915 | -7/Factory | Identified exit to Lower Caves 22915 | -7/Factory | Central database locked down 23443 | -7/Factory | Entered Lower Caves 23445 | -7/Lower Caves | Attracted the attention of an 0b10 checkpoint 23473 | -7/Lower Caves | Learned Factory security intel 24691 | -7/Lower Caves | Attracted the attention of an 0b10 outpost 25383 | -7/Lower Caves | Spotted B-75 Beast 25463 | -7/Lower Caves | Discovered new exit (range 12) 25952 | -7/Lower Caves | Entered another Lower Caves area 25952 | -7/Lower Caves | Accompanied by 2 allies 25986 | -7/Lower Caves | Learned Factory stockpile data 26290 | -7/Lower Caves | Discovered new exit (range 16) 26767 | -7/Lower Caves | Learned 8 Factory zone layouts 26784 | -7/Lower Caves | Spotted B-75 Beast 26956 | -7/Lower Caves | Encountered a Warlord checkpoint 27545 | -7/Lower Caves | Discovered new exit (range 14) 27982 | -7/Lower Caves | Found Prototype Device 27982 | -7/Lower Caves | Identified Heart of Steel 30270 | -7/Lower Caves | Entered Data Miner 30272 | -7/Data Miner | Discovered new exit (range 6) 30319 | -7/Data Miner | Met Data Miner 30402 | -7/Data Miner | Learned location of Section 7 (-2) 30402 | -7/Data Miner | Acquired the access code to Warlord's prototype stash 30434 | -7/Data Miner | Received God Mode back door access code from Data Miner 30497 | -7/Data Miner | Entered Proximity Caves 30658 | -6/Proximity Caves | Escorted by Enhanced Grunt 31066 | -6/Proximity Caves | Learned Factory security intel 32133 | -6/Proximity Caves | Discovered new exit (range 13) 34367 | -6/Proximity Caves | Entered Factory 34367 | -6/Factory | Evolved 2 slots: Power x1, Utility x1 34489 | -6/Factory | Discovered new exit (range 4) 34497 | -6/Factory | Identified exit to Lower Caves 34543 | -6/Factory | Sucked down chute 34543 | -6/Factory | Entered Waste 34558 | -6/Waste | EMP discharged 34591 | -6/Waste | Spotted C-40 Crusher 34602 | -6/Waste | Spotted C-40 Crusher 34651 | -6/Waste | Spotted C-40 Crusher 34652 | -6/Waste | Spotted C-40 Crusher 34654 | -6/Waste | Spotted C-40 Crusher 34655 | -6/Waste | Spotted C-40 Crusher 34658 | -6/Waste | EMP discharged 34688 | -6/Waste | Crushed by Compactor (1 part destroyed, 1 dropped) 34691 | -6/Waste | Crushed by Compactor (1 part destroyed, 2 dropped) 34722 | -6/Waste | Lost 6 parts (1p1n3u1w) 34726 | -6/Waste | Discovered new exit (range 11) 34735 | -6/Waste | Identified exit to Factory 34736 | -6/Waste | Entered Factory 34825 | -6/Factory | Discovered exit to Lower Caves (range 13) 35396 | -6/Factory | System corruption reached 10% 35446 | -6/Factory | Repaired F-cell Engine 35850 | -6/Factory | Build established: Scavenger-Mutant 35964 | -6/Factory | Cargo convoy interrupted 35972 | -6/Factory | Local machine network offline 36016 | -6/Factory | Incoming investigation squad redirected 36538 | -6/Factory | Incoming assault squad redirected 37477 | -6/Factory | Destroyed 9 combat bots 37536 | -6/Factory | First assault squad dispatched 37606 | -6/Factory | Lost 3 parts (1p1n1w) 37909 | -6/Factory | Incoming assault squad redirected 37980 | -6/Factory | Heart of Steel transformed into Warbot 38148 | -6/Factory | Found Prototype Device 38239 | -6/Factory | Entered Lower Caves 38239 | -6/Lower Caves | Accompanied by 1 ally (Warbot) 38274 | -6/Lower Caves | Identified exit to Lower Caves 38442 | -6/Lower Caves | Spotted B-75 Beast 38461 | -6/Lower Caves | Destroyed B-75 Beast 38524 | -6/Lower Caves | Encountered a Warlord checkpoint 38594 | -6/Lower Caves | Learned location of 1 exit from Lower Caves 39019 | -6/Lower Caves | Identified Active Sensor Suite 39205 | -6/Lower Caves | Entered another Lower Caves area 39205 | -6/Lower Caves | Accompanied by 1 ally (Warbot) 39206 | -6/Lower Caves | Identified exit to Factory 39293 | -6/Lower Caves | Encountered a Warlord checkpoint 39305 | -6/Lower Caves | Build established: Scavenger-Skirmisher 39839 | -6/Lower Caves | Discovered new exit (range 4) 39840 | -6/Lower Caves | Attracted the attention of an 0b10 checkpoint 39858 | -6/Lower Caves | Identified exit to Zion 39883 | -6/Lower Caves | Learned Factory garrison access intel 40167 | -6/Lower Caves | Entered Zion 40167 | -6/Zion | Accompanied by 1 ally (Warbot) 40224 | -6/Zion | System corruption cleaned by Quarantine Array 40353 | -6/Zion | Given the Hacking Drone Bay 40353 | -6/Zion | Found Prototype Device 40354 | -6/Zion | Identified Hacking Drone Bay 40469 | -6/Zion | Discovered new exit (range 15) 40478 | -6/Zion | Found CR-A16's Pointy Stick 41085 | -6/Zion | Build established: Derelict-Mutant 41297 | -6/Zion | Rebuked by Imprinter 41652 | -6/Zion | Learned location of Warlord (-4) 41737 | -6/Zion | Learned Factory emergency access door positions 41943 | -6/Zion | Build established: Scavenger-Skirmisher 42038 | -6/Zion | Identified exit to Proximity Caves 42040 | -6/Zion | Entered Proximity Caves 42040 | -5/Proximity Caves | Accompanied by 1 ally (Warbot) 42578 | -5/Proximity Caves | Discovered exit to Factory (range 6) 42616 | -5/Proximity Caves | Learned Factory stockpile data 43459 | -5/Proximity Caves | Spotted B-75 Beast 43483 | -5/Proximity Caves | Revealed the true nature of CR-A16's Pointy Stick 43486 | -5/Proximity Caves | Destroyed B-75 Beast 43585 | -5/Proximity Caves | Build established: Derelict-Mutant 43642 | -5/Proximity Caves | Entered Factory 43642 | -5/Factory | Evolved 2 slots: Propulsion x1, Weapon x1 43645 | -5/Factory | Loaded intel: 4 garrison access locations 43971 | -5/Factory | Build established: Scavenger-Mutant 44287 | -5/Factory | Build established: Scavenger-Gunner 44841 | -5/Factory | Discovered new exit (range 6) 44847 | -5/Factory | Fabricated I-36 Angel (x1) 44859 | -5/Factory | Identified exit to Upper Caves 44960 | -5/Factory | Fabricated D-83 Annihilator (x1) 44964 | -5/Factory | Entered Upper Caves 44964 | -5/Upper Caves | Accompanied by 1 ally 45053 | -5/Upper Caves | Learned 4 Factory zone layouts 45333 | -5/Upper Caves | Encountered a Warlord checkpoint 45414 | -5/Upper Caves | Build established: Gunner 45786 | -5/Upper Caves | Learned location of Armory (-3) 45849 | -5/Upper Caves | Discovered new exit (range 8) 45936 | -5/Upper Caves | Entered another Upper Caves area 45936 | -5/Upper Caves | Accompanied by 1 ally 45937 | -5/Upper Caves | Encountered a Warlord checkpoint 46002 | -5/Upper Caves | Discovered new exit (range 15) 46365 | -5/Upper Caves | Attracted the attention of an 0b10 checkpoint 46489 | -5/Upper Caves | Build established: Derelict-Gunner 46607 | -5/Upper Caves | Discovered new exit (range 9) 46792 | -5/Upper Caves | Entered Zhirov 46792 | -5/Zhirov | Discovered new exit (range 3) 46813 | -5/Zhirov | Met Zhirov 46838 | -5/Zhirov | Learned location of Quarantine (-3) 46838 | -5/Zhirov | Learned location of Command (-1) 46845 | -5/Zhirov | Zhirov requested help retrieving the SGEMP Prototype 46865 | -5/Zhirov | Found Alien Artifact 46865 | -5/Zhirov | Identified Integrated Reactor 46865 | -5/Zhirov | Installed Integrated Reactor, increased core energy generation (+10) 46969 | -5/Zhirov | Found Alien Artifact 47015 | -5/Zhirov | Entered Proximity Caves 47046 | -4/Proximity Caves | Learned Research emergency access door positions 47557 | -4/Proximity Caves | Discovered new exit (range 15) 47711 | -4/Proximity Caves | Build established: Trapper-Gunner 47888 | -4/Proximity Caves | Entered Factory 47888 | -4/Factory | Evolved 2 slots: Utility x2 48135 | -4/Factory | Incoming investigation squad redirected 48176 | -4/Factory | Fabricated Biometal Heavy Treads? 48207 | -4/Factory | Destroyed 9 combat bots 48424 | -4/Factory | Spotted B-86 Titan 48464 | -4/Factory | Destroyed B-86 Titan 48534 | -4/Factory | Found Prototype Launcher 48536 | -4/Factory | Found Prototype Launcher 48537 | -4/Factory | Identified Tesla Bomb Launcher (x2) 48665 | -4/Factory | Discovered new exit (range 16) 48794 | -4/Factory | Repaired Hrd. Heavy Armor Plating? 48795 | -4/Factory | Identified exit to Research 49138 | -4/Factory | First assault squad dispatched 49152 | -4/Factory | Found Imp. Powered Armor 49153 | -4/Factory | Incoming assault squad redirected 49155 | -4/Factory | Found Imp. Powered Armor 49160 | -4/Factory | Found Imp. Powered Armor 49162 | -4/Factory | Found Imp. Powered Armor 49239 | -4/Factory | Incoming investigation squad redirected 49285 | -4/Factory | Spotted B-86 Titan 49294 | -4/Factory | Destroyed B-86 Titan 49320 | -4/Factory | Discovered new exit (range 14) 49371 | -4/Factory | Entered Upper Caves 49488 | -4/Upper Caves | Identified exit to Upper Caves 49525 | -4/Upper Caves | Spotted B-86 Titan 49547 | -4/Upper Caves | Destroyed B-86 Titan 49869 | -4/Upper Caves | Build established: Trapper-Tank 50035 | -4/Upper Caves | Attracted the attention of an 0b10 checkpoint 50120 | -4/Upper Caves | Attracted the attention of an 0b10 outpost 50166 | -4/Upper Caves | Destroyed 7 combat bots 50942 | -4/Upper Caves | Build established: Trapper-Mutant 51275 | -4/Upper Caves | Entered another Upper Caves area 51275 | -4/Upper Caves | Accompanied by 2 allies 51276 | -4/Upper Caves | Identified exit to Warlord 51335 | -4/Upper Caves | Discovered exit to Research (range 15) 51339 | -4/Upper Caves | Encountered a Warlord checkpoint 51448 | -4/Upper Caves | Build established: Trapper-Tank 51690 | -4/Upper Caves | P-70 Sage assimilated allied Swordsman 7a 52012 | -4/Upper Caves | Build established: Trapper-Mutant 52442 | -4/Upper Caves | Build established: Trapper-Tank 52986 | -4/Upper Caves | Entered Warlord 52986 | -4/Warlord | Accompanied by 1 ally 53671 | -4/Warlord | Met Warlord 53680 | -4/Warlord | Build established: Trapper-Mutant 53696 | -4/Warlord | Warlord's base attacked by MAIN.C 53711 | -4/Warlord | Opened Warlord's prototype stash 53720 | -4/Warlord | Found Prototype Reactor 53726 | -4/Warlord | Found Prototype Device 53726 | -4/Warlord | Identified Exp. Cloaking Device 53903 | -4/Warlord | Destroyed 7 combat bots 53924 | -4/Warlord | Spotted B-90 Cyclops 53946 | -4/Warlord | Destroyed B-90 Cyclops 53974 | -4/Warlord | Warlord forces counterattacked 53988 | -4/Warlord | Destroyed 8 combat bots 53997 | -4/Warlord | Spotted B-90 Cyclops 54000 | -4/Warlord | Destroyed Striker 54003 | -4/Warlord | Spotted B-86 Titan 54016 | -4/Warlord | Destroyed B-86 Titan 54058 | -4/Warlord | Discovered new exit (range 12) 54076 | -4/Warlord | Entered Proximity Caves 54076 | -3/Proximity Caves | Accompanied by 1 ally 54389 | -3/Proximity Caves | Discovered exit to Research (range 6) 54451 | -3/Proximity Caves | Build established: Scavenger-Tank 55190 | -3/Proximity Caves | Entered Research 55190 | -3/Research | Accompanied by 1 ally 55190 | -3/Research | Evolved 2 slots: Power x1, Propulsion x1 55964 | -3/Research | Discovered new exit (range 13) 56070 | -3/Research | Destroyed 7 combat bots 56162 | -3/Research | System corruption reached 10% 56274 | -3/Research | Spotted Striker 56275 | -3/Research | Cargo convoy interrupted 56294 | -3/Research | Incoming assault squad redirected 56311 | -3/Research | Destroyed Striker 56313 | -3/Research | Identified Vortex Chain Reactor 56335 | -3/Research | System corruption reached 30% 56361 | -3/Research | Identified Transdimensional Reconstructor 56361 | -3/Research | Warped through subspace 56371 | -3/Research | Destroyed 13 combat bots 56374 | -3/Research | Spotted B-86 Titan 56380 | -3/Research | Destroyed B-86 Titan 56391 | -3/Research | Lost 19 parts (4p2n8u5w) 56422 | -3/Research | Core integrity fell below 50% 56462 | -3/Research | Incoming assault squad redirected 56490 | -3/Research | Incoming investigation squad redirected 56577 | -3/Research | Discovered new exit (range 15) 56581 | -3/Research | Core integrity fell below 20% 56589 | -3/Research | Entered another Research area 56589 | -2/Research | Warlord forces began assault on 0b10 56589 | -2/Research | Evolved 2 slots: Utility x2 56619 | -2/Research | Lost 3 parts (2n1u) 56699 | -2/Research | Research machine network offline 57023 | -2/Research | Borebot progress halted 57032 | -2/Research | Found Fusion Bomb Launcher 57073 | -2/Research | Met up with Warlord 57090 | -2/Research | Borebot progress halted 57272 | -2/Research | Discovered new exit (range 11) 57294 | -2/Research | Identified exit to Testing 57439 | -2/Research | Discovered new exit (range 7) 57480 | -2/Research | Spotted Striker 57484 | -2/Research | Entered Access 57484 | -1/Access | Evolved 2 slots: Utility x2 58135 | -1/Access | Spotted B-99 Colossus 58141 | -1/Access | Destroyed B-99 Colossus 58163 | -1/Access | Found Prototype Ballistic Gun 58163 | -1/Access | Identified Multirail 58324 | -1/Access | Found Prototype Device 58324 | -1/Access | Identified Femtoactuators 58346 | -1/Access | Found Hvy. Reflective Plating 58532 | -1/Access | Destroyed 8 combat bots 58625 | -1/Access | Found Antimissile System 58633 | -1/Access | Found Unknown Launcher 58633 | -1/Access | Identified Gamma Bomb Array 58649 | -1/Access | Found Hvy. Reactive Plating 58734 | -1/Access | First assault squad dispatched 58759 | -1/Access | Incoming assault squad redirected 58769 | -1/Access | Found Prototype Launcher 58769 | -1/Access | Identified Ragnarok Missile Launcher 58787 | -1/Access | Identified exit to Command 59197 | -1/Access | Build established: Scavenger-Mutant 59252 | -1/Access | Incoming assault squad redirected 59259 | -1/Access | Entered Command 59541 | -1/Command | First assault squad dispatched 59652 | -1/Command | Spotted B-99 Colossus 59661 | -1/Command | Destroyed B-99 Colossus 59858 | -1/Command | Found Heavy Servo Lattice 60576 | -1/Command | Incoming assault squad redirected 60778 | -1/Command | Incoming assault squad redirected 60869 | -1/Command | Disengaged cave seal 60869 | -1/Command | Derelicts emerged from the dark tunnel 60871 | -1/Command | Welcomed Warlord to Command 60919 | -1/Command | Phase Generator disabled 61062 | -1/Command | Incoming assault squad redirected 61199 | -1/Command | Build established: Scavenger-Tank 61246 | -1/Command | Disengaged cave seal 61246 | -1/Command | Derelicts emerged from the dark tunnel 61280 | -1/Command | Spotted XE-567(L) 61396 | -1/Command | Spotted Striker 61398 | -1/Command | Spotted Alpha 7 61410 | -1/Command | Spotted Executioner 61417 | -1/Command | Destroyed Executioner 61421 | -1/Command | Spotted Alpha 7 61421 | -1/Command | Spotted B-99 Colossus 61428 | -1/Command | Warlord destroyed during the assault 61446 | -1/Command | Destroyed B-99 Colossus 61452 | -1/Command | Spotted B-99 Colossus 61462 | -1/Command | Destroyed B-99 Colossus 61526 | -1/Command | Incoming assault squad redirected 61567 | -1/Command | Incoming assault squad redirected 61632 | -1/Command | Repaired Hvy. Reactive Plating 61751 | -1/Command | Spotted Combat Programmer 61886 | -1/Command | System corruption reached 10% 61891 | -1/Command | High security lockdown imminent 61958 | -1/Command | Destroyed 96 combat bots 61958 | -1/Command | Lost 6 parts (4u2w) 61971 | -1/Command | High security lockdown engaged 62072 | -1/Command | Destroyed 13 combat bots 62105 | -1/Command | Spotted Executioner 62105 | -1/Command | Spotted Striker 62111 | -1/Command | Destroyed Striker 62114 | -1/Command | Destroyed Executioner 62194 | -1/Command | Released all parts (8) 62207 | -1/Command | Core integrity fell below 50% 62211 | -1/Command | Destroyed 18 combat bots 62229 | -1/Command | Core integrity fell below 20% 62240 | -1/Command | Lost 13 parts (4n6u3w) 62243 | -1/Command | Released all parts (3) 62246 | -1/Command | Spotted Investigator 62250 | -1/Command | Scanned by Researcher 62256 | -1/Command | Destroyed by G-73 Enforcer with Phase Gun Last Messages --------------- 62209_ Slug penetrates Earth. 62209_ Impulse Thruster Array destroyed. 62213_ System corrupted: Component data lost. 62218_ Critical hit (Burn: +37). 62227_ Penetrated by Slug. 62241_ ALERT: Heavy assault forces dispatched. 62243_ Released Graviton Cannon. 62243_ Released Com. HERF Cannon. 62244_ System corrupted: Energy discharge (-26). 62247_ Acquired 4 matter. 62248_ Acquired 49 matter. 62250_ Critical hit (Burn: +37). 62250_ Investigator: "PRIMARY THREAT IDENTIFIED. CONTAINMENT PROTOCOL APPLICABLE." 62250_ Held in stasis. 62250_ Investigator is analyzing... 62250_ ALERT: Encountered unknown unique technology, formulating response. 62252_ Penetrated by Slug. 62253_ Held in stasis. 62253_ Investigator is analyzing... Map ----- +----------------------------------------------------+ | ??????# #?????###???????# #####? | | ??????# #????##=######??# # #?# | | ??????# #????#*% !!!#### #############?# | | ??????# #????# !!!# ??????????+ ! | | ??????# #????# !! " ?????????#### | | ??????# #????# " #???????????# | | ??????# #????# "% #???????????### | | ####### ###### " % ?????????????# | | / # " #?????????????#? | | / # " " #??????????????? | | / + # """" #??????????????? | | / # # "" #??????????????? | | / hl #"" ####???###??????????????? | | ####+###########g#"" #???????????????????????? | | ??# #???#l#"Y #???????????????????????? | | ??# #???#g#"" #???????????????????????? | | ??# """#???# #"" #???????????????????????? | | ??# """#???# # #???????????????????????? | | ??# R"#???# + #???????????????????????? | | ??# """#???#l#########???????????????????????? | | ??# "" #???# #???????????????????????????????? | | ??# hg]##??#g#?????????????????#####?????????? | | ??# hg]#??# #????######## ?????????? | | ??#########h##?#b####### ### ????????? | | ????????## #b###g# ### ????????? | | ???######"##""""g"# % @ "??????????????? | | ???# % sgbcg %% "??????????????? | | ???# b%%%% "??????????????? | | ???# % shg "??????????????? | | ???# g % % % % ^ "??????????????? | | ####+######"#;;; g%;# "??????????????? | | ### # #%# # # # # ?????????????? | | #?# ## ## # ### ;# ???????????? | | #?# ##############? ???????????? | | +? #???????????????#####???????????? | | "" """" #?# #???????????????????????????????? | | """" """" #?# #???????????????????????????????? | | """" """" #?# #???????????????????????????????? | | "" """" #?# #???????????????????????????????? | | #?# #??????????????????????????????## | | ! #?? ??????????????????############## | | #+############?? ??????????????????# | | ###########??%??????????????????# ! | | [!??????????????????# | | =%??????????????+ ##+######+# | | ###########?????????????????##?????# ## | | ###############?????????????????????#= #? | | # #?????????????????????# #? | | + !!! #?????????????????????# #? | | # !! #?????????????????????########/### | +----------------------------------------------------+ Best States ------------- Heat Dissipation 145 Coolant Potential 100 Energy Generation 93 Energy Capacity 910 Matter Stores 300 Matter Capacity 300 Sight Range 20 Robot Scan Range 20 Terrain Scan Range 20 Terrain Scan Density 10 Jamming Range 16 Cloak Strength 2 Power Amplification 30 Additional Mass Support 20 Armor Coverage 2400 Resistance: KI 40 Resistance: TH 30 Resistance: EM 20 Core Shielding 30 Propulsion Shielding 66 Weapon Shielding 66 Weapon Cycling 25 Phase Shifting 15 Evasion (%) 55 Targeting Accuracy 13 Target Analysis 9 Armor Integrity Analysis 40 Recoil Reduction 6 Particle Charging 30 Offensive Hacking 22 Defensive Hacking 12 Authchip Count 4 Trap Extractor Capacity 8 Item Schematics ----------------- Mak. Transmission Jammer | -9/Materials | Scanalyzed Mak. Trap Scanner | -9/Materials | Scanalyzed Huge Storage Unit | -9/Materials | Hacked Imp. Treads | -9/Materials | Scanalyzed Datajack | -9/Materials | Extracted Cargo Storage Unit | -9/Mines | Hacked Mak. System Restoration Module | -8/Materials | Scanalyzed Hvy. Ion Cannon | -7/Factory | Extracted VSS Leg | -7/Factory | Extracted Hrd. Medium Armor Plating | -7/Factory | Extracted Combat Drone Bay | -7/Data Miner | Free Lgt. Regenerative Plating | -7/Data Miner | Free Biomechanical Wings | -7/Data Miner | Free Thermal Defense Suite | -7/Data Miner | Free Antimatter Cannon | -7/Data Miner | Free Nuclear Pulse Array | -7/Data Miner | Free Adv. Hacking Suite | -7/Data Miner | Free Lrn. Proton Cannon | -7/Data Miner | Free Imp. Core Shielding | -7/Data Miner | Free Imp. Arc Projector | -7/Data Miner | Free Adv. Datajack | -7/Data Miner | Free Centrium Wheel | -7/Data Miner | Free Adv. Signal Interpreter | -6/Zion | Archive Imp. Dynamic Insulation System | -6/Zion | Archive EM Disruption Field | -6/Zion | Archive Antigrav System | -6/Zion | Archive Plasma Rifle | -6/Zion | Archive Imp. Weapon Cycler | -6/Zion | Archive Arm. Leg | -6/Zion | Archive Hvy. Gauss Cannon | -6/Zion | Archive Flexi-carbon Leg | -6/Zion | Archive Mass Driver | -6/Zion | Archive Tesla Rifle | -6/Zion | Archive Imp. Actuator Array | -6/Zion | Archive Recoil Nullifier | -6/Zion | Archive Imp. Cryofiber Web | -6/Zion | Archive Assault Drone Bay | -5/Zhirov | Free Exp. Heat Sink | -5/Zhirov | Free Exp. Optical Array | -5/Zhirov | Free Imp. Arc Thrower | -5/Zhirov | Free Robot Schematics ------------------ B-48 Gladiator | -7/Data Miner | Free H-66 Slayer | -7/Data Miner | Free S-27 Virus | -7/Data Miner | Free I-36 Angel | -7/Data Miner | Free A-15 Conveyor | -6/Zion | Archive D-83 Annihilator | -6/Zion | Archive A-02 Transporter | -6/Zion | Archive R-06 Scavenger | -6/Zion | Archive Fabricated ------------ I-36 Angel | x1 | -5/Factory | Authchip D-83 Annihilator | x1 | -5/Factory | Authchip Biometal Heavy Treads | x2 | -4/Factory | Preloaded Alien Tech Used ----------------- Integrated Reactor Transdimensional Reconstructor Achievements -------------- None Challenges ------------ None Game ------ Seed GatlingAutogunDrive Manual? 0 Play Time 05:17:48 Cumulative 1335.0 hours Start 2023.07.04 @ 01:47:03 End 2023.07.04 @ 15:41:27 Sessions 5 Manual Loads 0 Difficulty Rogue Special Mode None Game No. 953 Rogue 949 Adventurer 4 Explorer 0 Win Type - Total 150 Types 112/10/10/6/2/1/1/5/3 Lore% 95 Gallery% 97 Achievement% 98 Wizard Run 0 Options --------- ASCII 0 Keyboard 1 Movement Vi Keybinds 0 Fullscreen 0 Font 20/X11 Map View 76x50 Tactical HUD 1 Map Filters NONE Filters NONE Steam 1 RUN: 5db910bf-6295-4147-9653-7d713ae7177a